Publisher Label,Publisher URI,"Supplier ID","Supplier","Invoice No.","Amount £","Purpose","Transaction Number","Payment Date","Organisational Unit","Cost Centre(T)","Internal Category Number"
"Wolverhampton City Council","http://opendatacommunities.org/id/metropolitan-district-council/wolverhampton","706697","Radis Community Care","0107201820180710","101.64","TPP - Home Care","190483003","11/07/2018","Older People Care Purchasing","OP Care Purchasing (Spot Placements)","R5420"
"Wolverhampton City Council","http://opendatacommunities.org/id/metropolitan-district-council/wolverhampton","706697","Radis Community Care","0107201820180710","268.62","TPP - Home Care","190483003","11/07/2018","Physical Disabilities Care Purchasing","PD Care Purchasing (Spot Placements)","R5420"
"Wolverhampton City Council","http://opendatacommunities.org/id/metropolitan-district-council/wolverhampton","706697","Radis Community Care","0107201820180710","275.88","TPP - Home Care","190483003","11/07/2018","Physical Disabilities Care Purchasing","PD Care Purchasing (Spot Placements)","R5420"
"Wolverhampton City Council","http://opendatacommunities.org/id/metropolitan-district-council/wolverhampton","706697","Radis Community Care","0107201820180710","98.01","TPP - Home Care","190483003","11/07/2018","Older People Care Purchasing","OP Care Purchasing (Spot Placements)","R5420"
"Wolverhampton City Council","http://opendatacommunities.org/id/metropolitan-district-council/wolverhampton","706697","Radis Community Care","0107201820180710","43.56","TPP - Home Care","190483003","11/07/2018","Older People Care Purchasing","OP Care Purchasing (Spot Placements)","R5420"
"Wolverhampton City Council","http://opendatacommunities.org/id/metropolitan-district-council/wolverhampton","706697","Radis Community Care","0107201820180710","61.71","TPP - Home Care","190483003","11/07/2018","Older People Care Purchasing","OP Care Purchasing (Spot Placements)","R5420"
"Wolverhampton City Council","http://opendatacommunities.org/id/metropolitan-district-council/wolverhampton","706697","Radis Community Care","0107201820180710","50.82","TPP - Home Care","190483003","11/07/2018","Physical Disabilities Care Purchasing","PD Care Purchasing (Spot Placements)","R5420"
"Wolverhampton City Council","http://opendatacommunities.org/id/metropolitan-district-council/wolverhampton","706697","Radis Community Care","0107201820180710","39.93","TPP - Home Care","190483003","11/07/2018","Physical Disabilities Care Purchasing","PD Care Purchasing (Spot Placements)","R5420"
"Wolverhampton City Council","http://opendatacommunities.org/id/metropolitan-district-council/wolverhampton","706697","Radis Community Care","0107201820180710","94.38","TPP - Home Care","190483003","11/07/2018","Older People Care Purchasing","OP Care Purchasing (Spot Placements)","R5420"
"Wolverhampton City Council","http://opendatacommunities.org/id/metropolitan-district-council/wolverhampton","706697","Radis Community Care","0107201820180710","210.54","TPP - Home Care","190483003","11/07/2018","Physical Disabilities Care Purchasing","PD Care Purchasing (Spot Placements)","R5420"
"Wolverhampton City Council","http://opendatacommunities.org/id/metropolitan-district-council/wolverhampton","706697","Radis Community Care","0107201820180710","196.02","TPP - Home Care","190483003","11/07/2018","Physical Disabilities Care Purchasing","PD Care Purchasing (Spot Placements)","R5420"
"Wolverhampton City Council","http://opendatacommunities.org/id/metropolitan-district-council/wolverhampton","706697","Radis Community Care","0107201820180710","163.35","TPP - Home Care","190483003","11/07/2018","Physical Disabilities Care Purchasing","PD Care Purchasing (Spot Placements)","R5420"
"Wolverhampton City Council","http://opendatacommunities.org/id/metropolitan-district-council/wolverhampton","706697","Radis Community Care","0107201820180710","134.31","TPP - Home Care","190483003","11/07/2018","Physical Disabilities Care Purchasing","PD Care Purchasing (Spot Placements)","R5420"
"Wolverhampton City Council","http://opendatacommunities.org/id/metropolitan-district-council/wolverhampton","706697","Radis Community Care","0107201820180710","50.82","TPP - Home Care","190483003","11/07/2018","Older People Care Purchasing","OP Care Purchasing (Spot Placements)","R5420"
"Wolverhampton City Council","http://opendatacommunities.org/id/metropolitan-district-council/wolverhampton","706697","Radis Community Care","0107201820180710","185.13","TPP - Home Care","190483003","11/07/2018","Physical Disabilities Care Purchasing","PD Care Purchasing (Spot Placements)","R5420"
"Wolverhampton City Council","http://opendatacommunities.org/id/metropolitan-district-council/wolverhampton","706697","Radis Community Care","0107201820180710","170.61","TPP - Home Care","190483003","11/07/2018","Physical Disabilities Care Purchasing","PD Care Purchasing (Spot Placements)","R5420"
"Wolverhampton City Council","http://opendatacommunities.org/id/metropolitan-district-council/wolverhampton","706697","Radis Community Care","0107201820180710","50.82","TPP - Home Care","190483003","11/07/2018","Older People Care Purchasing","OP Care Purchasing (Spot Placements)","R5420"
"Wolverhampton City Council","http://opendatacommunities.org/id/metropolitan-district-council/wolverhampton","706697","Radis Community Care","0107201820180710","166.98","TPP - Home Care","190483003","11/07/2018","Older People Care Purchasing","OP Care Purchasing (Spot Placements)","R5420"
"Wolverhampton City Council","http://opendatacommunities.org/id/metropolitan-district-council/wolverhampton","706697","Radis Community Care","0107201820180710","101.64","TPP - Home Care","190483003","11/07/2018","Older People Care Purchasing","OP Care Purchasing (Spot Placements)","R5420"
"Wolverhampton City Council","http://opendatacommunities.org/id/metropolitan-district-council/wolverhampton","706697","Radis Community Care","0107201820180710","225.06","TPP - Home Care","190483003","11/07/2018","Older People Care Purchasing","OP Care Purchasing (Spot Placements)","R5420"
"Wolverhampton City Council","http://opendatacommunities.org/id/metropolitan-district-council/wolverhampton","706697","Radis Community Care","0107201820180710","36.30","TPP - Home Care","190483003","11/07/2018","Older People Care Purchasing","OP Care Purchasing (Spot Placements)","R5420"
"Wolverhampton City Council","http://opendatacommunities.org/id/metropolitan-district-council/wolverhampton","706697","Radis Community Care","0107201820180710","511.83","TPP - Home Care","190483003","11/07/2018","Physical Disabilities Care Purchasing","PD Care Purchasing (Spot Placements)","R5420"
"Wolverhampton City Council","http://opendatacommunities.org/id/metropolitan-district-council/wolverhampton","706697","Radis Community Care","0107201820180710","475.53","TPP - Home Care","190483003","11/07/2018","Physical Disabilities Care Purchasing","PD Care Purchasing (Spot Placements)","R5420"
"Wolverhampton City Council","http://opendatacommunities.org/id/metropolitan-district-council/wolverhampton","706697","Radis Community Care","0107201820180710","50.82","TPP - Home Care","190483003","11/07/2018","Older People Care Purchasing","OP Care Purchasing (Spot Placements)","R5420"
"Wolverhampton City Council","http://opendatacommunities.org/id/metropolitan-district-council/wolverhampton","706697","Radis Community Care","0107201820180710","123.42","TPP - Home Care","190483003","11/07/2018","Older People Care Purchasing","OP Care Purchasing (Spot Placements)","R5420"
"Wolverhampton City Council","http://opendatacommunities.org/id/metropolitan-district-council/wolverhampton","706697","Radis Community Care","0107201820180710","119.79","TPP - Home Care","190483003","11/07/2018","Older People Care Purchasing","OP Care Purchasing (Spot Placements)","R5420"
"Wolverhampton City Council","http://opendatacommunities.org/id/metropolitan-district-council/wolverhampton","706697","Radis Community Care","0107201820180710","174.24","TPP - Home Care","190483003","11/07/2018","Physical Disabilities Care Purchasing","PD Care Purchasing (Spot Placements)","R5420"
"Wolverhampton City Council","http://opendatacommunities.org/id/metropolitan-district-council/wolverhampton","706697","Radis Community Care","0107201820180710","203.28","TPP - Home Care","190483003","11/07/2018","Older People Care Purchasing","OP Care Purchasing (Spot Placements)","R5420"
"Wolverhampton City Council","http://opendatacommunities.org/id/metropolitan-district-council/wolverhampton","706697","Radis Community Care","0107201820180710","101.64","TPP - Home Care","190483003","11/07/2018","Older People Care Purchasing","OP Care Purchasing (Spot Placements)","R5420"
"Wolverhampton City Council","http://opendatacommunities.org/id/metropolitan-district-council/wolverhampton","706697","Radis Community Care","0107201820180710","188.76","TPP - Home Care","190483003","11/07/2018","Older People Care Purchasing","OP Care Purchasing (Spot Placements)","R5420"
"Wolverhampton City Council","http://opendatacommunities.org/id/metropolitan-district-council/wolverhampton","706697","Radis Community Care","0107201820180710","196.02","TPP - Home Care","190483003","11/07/2018","Older People Care Purchasing","OP Care Purchasing (Spot Placements)","R5420"
"Wolverhampton City Council","http://opendatacommunities.org/id/metropolitan-district-council/wolverhampton","706697","Radis Community Care","0107201820180710","203.28","TPP - Home Care","190483003","11/07/2018","Older People Care Purchasing","OP Care Purchasing (Spot Placements)","R5420"
"Wolverhampton City Council","http://opendatacommunities.org/id/metropolitan-district-council/wolverhampton","706697","Radis Community Care","0107201820180710","206.91","TPP - Home Care","190483003","11/07/2018","Older People Care Purchasing","OP Care Purchasing (Spot Placements)","R5420"
"Wolverhampton City Council","http://opendatacommunities.org/id/metropolitan-district-council/wolverhampton","706697","Radis Community Care","0107201820180710","119.79","TPP - Home Care","190483003","11/07/2018","Physical Disabilities Care Purchasing","PD Care Purchasing (Spot Placements)","R5420"
"Wolverhampton City Council","http://opendatacommunities.org/id/metropolitan-district-council/wolverhampton","706697","Radis Community Care","0107201820180710","50.82","TPP - Home Care","190483003","11/07/2018","Older People Care Purchasing","OP Care Purchasing (Spot Placements)","R5420"
"Wolverhampton City Council","http://opendatacommunities.org/id/metropolitan-district-council/wolverhampton","706697","Radis Community Care","0107201820180710","50.82","TPP - Home Care","190483003","11/07/2018","Physical Disabilities Care Purchasing","PD Care Purchasing (Spot Placements)","R5420"
"Wolverhampton City Council","http://opendatacommunities.org/id/metropolitan-district-council/wolverhampton","706697","Radis Community Care","0107201820180710","68.97","TPP - Home Care","190483003","11/07/2018","Learning Disabilities Care Purchasing","LD Care Purchasing (Spot Placements)","R5420"
"Wolverhampton City Council","http://opendatacommunities.org/id/metropolitan-district-council/wolverhampton","706697","Radis Community Care","0107201820180710","225.06","TPP - Home Care","190483003","11/07/2018","Older People Care Purchasing","OP Care Purchasing (Spot Placements)","R5420"
"Wolverhampton City Council","http://opendatacommunities.org/id/metropolitan-district-council/wolverhampton","706697","Radis Community Care","0107201820180710","58.08","TPP - Home Care","190483003","11/07/2018","Older People Care Purchasing","OP Care Purchasing (Spot Placements)","R5420"
"Wolverhampton City Council","http://opendatacommunities.org/id/metropolitan-district-council/wolverhampton","706697","Radis Community Care","0107201820180710","14.52","TPP - Home Care","190483003","11/07/2018","Older People Care Purchasing","OP Care Purchasing (Spot Placements)","R5420"
"Wolverhampton City Council","http://opendatacommunities.org/id/metropolitan-district-council/wolverhampton","706697","Radis Community Care","0107201820180710","101.64","TPP - Home Care","190483003","11/07/2018","Older People Care Purchasing","OP Care Purchasing (Spot Placements)","R5420"
"Wolverhampton City Council","http://opendatacommunities.org/id/metropolitan-district-council/wolverhampton","706697","Radis Community Care","0107201820180710","221.43","TPP - Home Care","190483003","11/07/2018","Older People Care Purchasing","OP Care Purchasing (Spot Placements)","R5420"
"Wolverhampton City Council","http://opendatacommunities.org/id/metropolitan-district-council/wolverhampton","706697","Radis Community Care","0107201820180710","188.76","TPP - Home Care","190483003","11/07/2018","Older People Care Purchasing","OP Care Purchasing (Spot Placements)","R5420"
"Wolverhampton City Council","http://opendatacommunities.org/id/metropolitan-district-council/wolverhampton","706697","Radis Community Care","0107201820180710","98.01","TPP - Home Care","190483003","11/07/2018","Older People Care Purchasing","OP Care Purchasing (Spot Placements)","R5420"
"Wolverhampton City Council","http://opendatacommunities.org/id/metropolitan-district-council/wolverhampton","706697","Radis Community Care","0107201820180710","72.60","TPP - Home Care","190483003","11/07/2018","Older People Care Purchasing","OP Care Purchasing (Spot Placements)","R5420"
"Wolverhampton City Council","http://opendatacommunities.org/id/metropolitan-district-council/wolverhampton","706697","Radis Community Care","0107201820180710","203.28","TPP - Home Care","190483003","11/07/2018","Older People Care Purchasing","OP Care Purchasing (Spot Placements)","R5420"
"Wolverhampton City Council","http://opendatacommunities.org/id/metropolitan-district-council/wolverhampton","706697","Radis Community Care","0107201820180710","127.05","TPP - Home Care","190483003","11/07/2018","Older People Care Purchasing","OP Care Purchasing (Spot Placements)","R5420"
"Wolverhampton City Council","http://opendatacommunities.org/id/metropolitan-district-council/wolverhampton","706697","Radis Community Care","0107201820180710","50.82","TPP - Home Care","190483003","11/07/2018","Older People Care Purchasing","OP Care Purchasing (Spot Placements)","R5420"
"Wolverhampton City Council","http://opendatacommunities.org/id/metropolitan-district-council/wolverhampton","706697","Radis Community Care","0107201820180710","50.82","TPP - Home Care","190483003","11/07/2018","Older People Care Purchasing","OP Care Purchasing (Spot Placements)","R5420"
"Wolverhampton City Council","http://opendatacommunities.org/id/metropolitan-district-council/wolverhampton","706697","Radis Community Care","0107201820180710","47.19","TPP - Home Care","190483003","11/07/2018","Older People Care Purchasing","OP Care Purchasing (Spot Placements)","R5420"
"Wolverhampton City Council","http://opendatacommunities.org/id/metropolitan-district-council/wolverhampton","706697","Radis Community Care","0107201820180710","50.82","TPP - Home Care","190483003","11/07/2018","Older People Care Purchasing","OP Care Purchasing (Spot Placements)","R5420"
"Wolverhampton City Council","http://opendatacommunities.org/id/metropolitan-district-council/wolverhampton","706697","Radis Community Care","0107201820180710","50.82","TPP - Home Care","190483003","11/07/2018","Older People Care Purchasing","OP Care Purchasing (Spot Placements)","R5420"
"Wolverhampton City Council","http://opendatacommunities.org/id/metropolitan-district-council/wolverhampton","706697","Radis Community Care","0107201820180710","228.69","TPP - Home Care","190483003","11/07/2018","Older People Care Purchasing","OP Care Purchasing (Spot Placements)","R5420"
"Wolverhampton City Council","http://opendatacommunities.org/id/metropolitan-district-council/wolverhampton","706697","Radis Community Care","0107201820180710","250.47","TPP - Home Care","190483003","11/07/2018","Older People Care Purchasing","OP Care Purchasing (Spot Placements)","R5420"
"Wolverhampton City Council","http://opendatacommunities.org/id/metropolitan-district-council/wolverhampton","706697","Radis Community Care","0107201820180710","101.64","TPP - Home Care","190483003","11/07/2018","Older People Care Purchasing","OP Care Purchasing (Spot Placements)","R5420"
"Wolverhampton City Council","http://opendatacommunities.org/id/metropolitan-district-council/wolverhampton","706697","Radis Community Care","0107201820180710","148.83","TPP - Home Care","190483003","11/07/2018","Older People Care Purchasing","OP Care Purchasing (Spot Placements)","R5420"
"Wolverhampton City Council","http://opendatacommunities.org/id/metropolitan-district-council/wolverhampton","706697","Radis Community Care","0107201820180710","101.64","TPP - Home Care","190483003","11/07/2018","Older People Care Purchasing","OP Care Purchasing (Spot Placements)","R5420"
"Wolverhampton City Council","http://opendatacommunities.org/id/metropolitan-district-council/wolverhampton","706697","Radis Community Care","0107201820180710","185.13","TPP - Home Care","190483003","11/07/2018","Older People Care Purchasing","OP Care Purchasing (Spot Placements)","R5420"
"Wolverhampton City Council","http://opendatacommunities.org/id/metropolitan-district-council/wolverhampton","706697","Radis Community Care","0107201820180710","159.72","TPP - Home Care","190483003","11/07/2018","Older People Care Purchasing","OP Care Purchasing (Spot Placements)","R5420"
"Wolverhampton City Council","http://opendatacommunities.org/id/metropolitan-district-council/wolverhampton","706697","Radis Community Care","0107201820180710","94.38","TPP - Home Care","190483003","11/07/2018","Older People Care Purchasing","OP Care Purchasing (Spot Placements)","R5420"
"Wolverhampton City Council","http://opendatacommunities.org/id/metropolitan-district-council/wolverhampton","706697","Radis Community Care","0107201820180710","41.40","TPP - Carer Support Service","190483003","11/07/2018","Carer Support","CS Care Purchasing (Spot Placements)","R5421"
"Wolverhampton City Council","http://opendatacommunities.org/id/metropolitan-district-council/wolverhampton","706697","Radis Community Care","0107201820180710","214.17","TPP - Home Care","190483003","11/07/2018","Older People Care Purchasing","OP Care Purchasing (Spot Placements)","R5420"
"Wolverhampton City Council","http://opendatacommunities.org/id/metropolitan-district-council/wolverhampton","706697","Radis Community Care","0107201820180710","58.08","TPP - Home Care","190483003","11/07/2018","Physical Disabilities Care Purchasing","PD Care Purchasing (Spot Placements)","R5420"
"Wolverhampton City Council","http://opendatacommunities.org/id/metropolitan-district-council/wolverhampton","706697","Radis Community Care","0107201820180710","98.01","TPP - Home Care","190483003","11/07/2018","Older People Care Purchasing","OP Care Purchasing (Spot Placements)","R5420"
"Wolverhampton City Council","http://opendatacommunities.org/id/metropolitan-district-council/wolverhampton","706697","Radis Community Care","0107201820180710","36.30","TPP - Home Care","190483003","11/07/2018","Older People Care Purchasing","OP Care Purchasing (Spot Placements)","R5420"
"Wolverhampton City Council","http://opendatacommunities.org/id/metropolitan-district-council/wolverhampton","706697","Radis Community Care","0107201820180710","203.28","TPP - Home Care","190483003","11/07/2018","Older People Care Purchasing","OP Care Purchasing (Spot Placements)","R5420"
"Wolverhampton City Council","http://opendatacommunities.org/id/metropolitan-district-council/wolverhampton","706697","Radis Community Care","0107201820180710","101.64","TPP - Home Care","190483003","11/07/2018","Older People Care Purchasing","OP Care Purchasing (Spot Placements)","R5420"
"Wolverhampton City Council","http://opendatacommunities.org/id/metropolitan-district-council/wolverhampton","706697","Radis Community Care","0107201820180710","101.64","TPP - Home Care","190483003","11/07/2018","Older People Care Purchasing","OP Care Purchasing (Spot Placements)","R5420"
"Wolverhampton City Council","http://opendatacommunities.org/id/metropolitan-district-council/wolverhampton","706697","Radis Community Care","0107201820180710","101.64","TPP - Home Care","190483003","11/07/2018","Older People Care Purchasing","OP Care Purchasing (Spot Placements)","R5420"
"Wolverhampton City Council","http://opendatacommunities.org/id/metropolitan-district-council/wolverhampton","706697","Radis Community Care","0107201820180710","65.55","TPP - Carer Support Service","190483003","11/07/2018","Carer Support","CS Care Purchasing (Spot Placements)","R5421"
"Wolverhampton City Council","http://opendatacommunities.org/id/metropolitan-district-council/wolverhampton","706697","Radis Community Care","0107201820180710","196.02","TPP - Home Care","190483003","11/07/2018","Older People Care Purchasing","OP Care Purchasing (Spot Placements)","R5420"
"Wolverhampton City Council","http://opendatacommunities.org/id/metropolitan-district-council/wolverhampton","706697","Radis Community Care","0107201820180710","188.76","TPP - Home Care","190483003","11/07/2018","Older People Care Purchasing","OP Care Purchasing (Spot Placements)","R5420"
"Wolverhampton City Council","http://opendatacommunities.org/id/metropolitan-district-council/wolverhampton","706697","Radis Community Care","0107201820180710","196.02","TPP - Home Care","190483003","11/07/2018","Older People Care Purchasing","OP Care Purchasing (Spot Placements)","R5420"
"Wolverhampton City Council","http://opendatacommunities.org/id/metropolitan-district-council/wolverhampton","706697","Radis Community Care","0107201820180710","130.68","TPP - Home Care","190483003","11/07/2018","Older People Care Purchasing","OP Care Purchasing (Spot Placements)","R5420"
"Wolverhampton City Council","http://opendatacommunities.org/id/metropolitan-district-council/wolverhampton","706697","Radis Community Care","0107201820180710","239.58","TPP - Home Care","190483003","11/07/2018","Older People Care Purchasing","OP Care Purchasing (Spot Placements)","R5420"
"Wolverhampton City Council","http://opendatacommunities.org/id/metropolitan-district-council/wolverhampton","706697","Radis Community Care","0107201820180710","203.28","TPP - Home Care","190483003","11/07/2018","Older People Care Purchasing","OP Care Purchasing (Spot Placements)","R5420"
"Wolverhampton City Council","http://opendatacommunities.org/id/metropolitan-district-council/wolverhampton","706697","Radis Community Care","0107201820180710","225.06","TPP - Home Care","190483003","11/07/2018","Older People Care Purchasing","OP Care Purchasing (Spot Placements)","R5420"
"Wolverhampton City Council","http://opendatacommunities.org/id/metropolitan-district-council/wolverhampton","706697","Radis Community Care","0107201820180710","87.12","TPP - Home Care","190483003","11/07/2018","Older People Care Purchasing","OP Care Purchasing (Spot Placements)","R5420"
"Wolverhampton City Council","http://opendatacommunities.org/id/metropolitan-district-council/wolverhampton","706697","Radis Community Care","0107201820180710","76.23","TPP - Home Care","190483003","11/07/2018","Older People Care Purchasing","OP Care Purchasing (Spot Placements)","R5420"
"Wolverhampton City Council","http://opendatacommunities.org/id/metropolitan-district-council/wolverhampton","706697","Radis Community Care","0107201820180710","203.28","TPP - Home Care","190483003","11/07/2018","Older People Care Purchasing","OP Care Purchasing (Spot Placements)","R5420"
"Wolverhampton City Council","http://opendatacommunities.org/id/metropolitan-district-council/wolverhampton","706697","Radis Community Care","0107201820180710","214.17","TPP - Home Care","190483003","11/07/2018","Older People Care Purchasing","OP Care Purchasing (Spot Placements)","R5420"
"Wolverhampton City Council","http://opendatacommunities.org/id/metropolitan-district-council/wolverhampton","706697","Radis Community Care","0107201820180710","206.91","TPP - Home Care","190483003","11/07/2018","Older People Care Purchasing","OP Care Purchasing (Spot Placements)","R5420"
"Wolverhampton City Council","http://opendatacommunities.org/id/metropolitan-district-council/wolverhampton","706697","Radis Community Care","0107201820180710","196.02","TPP - Home Care","190483003","11/07/2018","Older People Care Purchasing","OP Care Purchasing (Spot Placements)","R5420"
"Wolverhampton City Council","http://opendatacommunities.org/id/metropolitan-district-council/wolverhampton","706697","Radis Community Care","0107201820180710","228.69","TPP - Home Care","190483003","11/07/2018","Older People Care Purchasing","OP Care Purchasing (Spot Placements)","R5420"
"Wolverhampton City Council","http://opendatacommunities.org/id/metropolitan-district-council/wolverhampton","706697","Radis Community Care","0107201820180710","203.28","TPP - Home Care","190483003","11/07/2018","Older People Care Purchasing","OP Care Purchasing (Spot Placements)","R5420"
"Wolverhampton City Council","http://opendatacommunities.org/id/metropolitan-district-council/wolverhampton","706697","Radis Community Care","0107201820180710","199.65","TPP - Home Care","190483003","11/07/2018","Older People Care Purchasing","OP Care Purchasing (Spot Placements)","R5420"
"Wolverhampton City Council","http://opendatacommunities.org/id/metropolitan-district-council/wolverhampton","706697","Radis Community Care","0107201820180710","98.01","TPP - Home Care","190483003","11/07/2018","Older People Care Purchasing","OP Care Purchasing (Spot Placements)","R5420"
"Wolverhampton City Council","http://opendatacommunities.org/id/metropolitan-district-council/wolverhampton","706697","Radis Community Care","0107201820180710","145.20","TPP - Home Care","190483003","11/07/2018","Older People Care Purchasing","OP Care Purchasing (Spot Placements)","R5420"
"Wolverhampton City Council","http://opendatacommunities.org/id/metropolitan-district-council/wolverhampton","706697","Radis Community Care","0107201820180710","101.64","TPP - Home Care","190483003","11/07/2018","Older People Care Purchasing","OP Care Purchasing (Spot Placements)","R5420"
"Wolverhampton City Council","http://opendatacommunities.org/id/metropolitan-district-council/wolverhampton","706697","Radis Community Care","0107201820180710","406.56","TPP - Home Care","190483003","11/07/2018","Older People Care Purchasing","OP Care Purchasing (Spot Placements)","R5420"
"Wolverhampton City Council","http://opendatacommunities.org/id/metropolitan-district-council/wolverhampton","706697","Radis Community Care","0107201820180710","206.91","TPP - Home Care","190483003","11/07/2018","Older People Care Purchasing","OP Care Purchasing (Spot Placements)","R5420"
"Wolverhampton City Council","http://opendatacommunities.org/id/metropolitan-district-council/wolverhampton","706697","Radis Community Care","0107201820180710","203.28","TPP - Home Care","190483003","11/07/2018","Physical Disabilities Care Purchasing","PD Care Purchasing (Spot Placements)","R5420"
"Wolverhampton City Council","http://opendatacommunities.org/id/metropolitan-district-council/wolverhampton","706697","Radis Community Care","0107201820180710","203.28","TPP - Home Care","190483003","11/07/2018","Physical Disabilities Care Purchasing","PD Care Purchasing (Spot Placements)","R5420"
"Wolverhampton City Council","http://opendatacommunities.org/id/metropolitan-district-council/wolverhampton","706697","Radis Community Care","0107201820180710","264.99","TPP - Home Care","190483003","11/07/2018","Older People Care Purchasing","OP Care Purchasing (Spot Placements)","R5420"
"Wolverhampton City Council","http://opendatacommunities.org/id/metropolitan-district-council/wolverhampton","706697","Radis Community Care","0107201820180710","210.54","TPP - Home Care","190483003","11/07/2018","Older People Care Purchasing","OP Care Purchasing (Spot Placements)","R5420"
"Wolverhampton City Council","http://opendatacommunities.org/id/metropolitan-district-council/wolverhampton","706697","Radis Community Care","0107201820180710","98.01","TPP - Home Care","190483003","11/07/2018","Older People Care Purchasing","OP Care Purchasing (Spot Placements)","R5420"
"Wolverhampton City Council","http://opendatacommunities.org/id/metropolitan-district-council/wolverhampton","706697","Radis Community Care","0107201820180710","177.87","TPP - Home Care","190483003","11/07/2018","Older People Care Purchasing","OP Care Purchasing (Spot Placements)","R5420"
"Wolverhampton City Council","http://opendatacommunities.org/id/metropolitan-district-council/wolverhampton","706697","Radis Community Care","0107201820180710","192.39","TPP - Home Care","190483003","11/07/2018","Older People Care Purchasing","OP Care Purchasing (Spot Placements)","R5420"
"Wolverhampton City Council","http://opendatacommunities.org/id/metropolitan-district-council/wolverhampton","706697","Radis Community Care","0107201820180710","214.17","TPP - Home Care","190483003","11/07/2018","Older People Care Purchasing","OP Care Purchasing (Spot Placements)","R5420"
"Wolverhampton City Council","http://opendatacommunities.org/id/metropolitan-district-council/wolverhampton","706697","Radis Community Care","0107201820180710","65.34","TPP - Home Care","190483003","11/07/2018","Physical Disabilities Care Purchasing","PD Care Purchasing (Spot Placements)","R5420"
"Wolverhampton City Council","http://opendatacommunities.org/id/metropolitan-district-council/wolverhampton","706697","Radis Community Care","0107201820180710","58.08","TPP - Home Care","190483003","11/07/2018","Physical Disabilities Care Purchasing","PD Care Purchasing (Spot Placements)","R5420"
"Wolverhampton City Council","http://opendatacommunities.org/id/metropolitan-district-council/wolverhampton","706697","Radis Community Care","0107201820180710","199.65","TPP - Home Care","190483003","11/07/2018","Older People Care Purchasing","OP Care Purchasing (Spot Placements)","R5420"
"Wolverhampton City Council","http://opendatacommunities.org/id/metropolitan-district-council/wolverhampton","706697","Radis Community Care","0107201820180710","101.64","TPP - Home Care","190483003","11/07/2018","Older People Care Purchasing","OP Care Purchasing (Spot Placements)","R5420"
"Wolverhampton City Council","http://opendatacommunities.org/id/metropolitan-district-council/wolverhampton","706697","Radis Community Care","0107201820180710","108.90","TPP - Home Care","190483003","11/07/2018","Older People Care Purchasing","OP Care Purchasing (Spot Placements)","R5420"
"Wolverhampton City Council","http://opendatacommunities.org/id/metropolitan-district-council/wolverhampton","706697","Radis Community Care","0107201820180710","10.89","TPP - Home Care","190483003","11/07/2018","Older People Care Purchasing","OP Care Purchasing (Spot Placements)","R5420"
"Wolverhampton City Council","http://opendatacommunities.org/id/metropolitan-district-council/wolverhampton","706697","Radis Community Care","0107201820180710","210.54","TPP - Home Care","190483003","11/07/2018","Older People Care Purchasing","OP Care Purchasing (Spot Placements)","R5420"
"Wolverhampton City Council","http://opendatacommunities.org/id/metropolitan-district-council/wolverhampton","706697","Radis Community Care","0107201820180710","145.20","TPP - Home Care","190483003","11/07/2018","Older People Care Purchasing","OP Care Purchasing (Spot Placements)","R5420"
"Wolverhampton City Council","http://opendatacommunities.org/id/metropolitan-district-council/wolverhampton","706697","Radis Community Care","0107201820180710","101.64","TPP - Home Care","190483003","11/07/2018","Older People Care Purchasing","OP Care Purchasing (Spot Placements)","R5420"
"Wolverhampton City Council","http://opendatacommunities.org/id/metropolitan-district-council/wolverhampton","706697","Radis Community Care","0107201820180710","50.82","TPP - Home Care","190483003","11/07/2018","Older People Care Purchasing","OP Care Purchasing (Spot Placements)","R5420"
"Wolverhampton City Council","http://opendatacommunities.org/id/metropolitan-district-council/wolverhampton","706697","Radis Community Care","0107201820180710","50.82","TPP - Home Care","190483003","11/07/2018","Older People Care Purchasing","OP Care Purchasing (Spot Placements)","R5420"
"Wolverhampton City Council","http://opendatacommunities.org/id/metropolitan-district-council/wolverhampton","706697","Radis Community Care","0107201820180710","101.64","TPP - Home Care","190483003","11/07/2018","Older People Care Purchasing","OP Care Purchasing (Spot Placements)","R5420"
"Wolverhampton City Council","http://opendatacommunities.org/id/metropolitan-district-council/wolverhampton","706697","Radis Community Care","0107201820180710","21.78","TPP - Home Care","190483003","11/07/2018","Physical Disabilities Care Purchasing","PD Care Purchasing (Spot Placements)","R5420"
"Wolverhampton City Council","http://opendatacommunities.org/id/metropolitan-district-council/wolverhampton","706697","Radis Community Care","0107201820180710","185.13","TPP - Home Care","190483003","11/07/2018","Physical Disabilities Care Purchasing","PD Care Purchasing (Spot Placements)","R5420"
"Wolverhampton City Council","http://opendatacommunities.org/id/metropolitan-district-council/wolverhampton","706697","Radis Community Care","0107201820180710","58.08","TPP - Home Care","190483003","11/07/2018","Physical Disabilities Care Purchasing","PD Care Purchasing (Spot Placements)","R5420"
"Wolverhampton City Council","http://opendatacommunities.org/id/metropolitan-district-council/wolverhampton","706697","Radis Community Care","0107201820180710","39.93","TPP - Home Care","190483003","11/07/2018","Older People Care Purchasing","OP Care Purchasing (Spot Placements)","R5420"
"Wolverhampton City Council","http://opendatacommunities.org/id/metropolitan-district-council/wolverhampton","706697","Radis Community Care","0107201820180710","76.23","TPP - Home Care","190483003","11/07/2018","Physical Disabilities Care Purchasing","PD Care Purchasing (Spot Placements)","R5420"
"Wolverhampton City Council","http://opendatacommunities.org/id/metropolitan-district-council/wolverhampton","706697","Radis Community Care","0107201820180710","76.23","TPP - Home Care","190483003","11/07/2018","Physical Disabilities Care Purchasing","PD Care Purchasing (Spot Placements)","R5420"
"Wolverhampton City Council","http://opendatacommunities.org/id/metropolitan-district-council/wolverhampton","706697","Radis Community Care","0107201820180710","32.67","TPP - Home Care","190483003","11/07/2018","Physical Disabilities Care Purchasing","PD Care Purchasing (Spot Placements)","R5420"
"Wolverhampton City Council","http://opendatacommunities.org/id/metropolitan-district-council/wolverhampton","706697","Radis Community Care","0107201820180710","225.06","TPP - Home Care","190483003","11/07/2018","Older People Care Purchasing","OP Care Purchasing (Spot Placements)","R5420"
"Wolverhampton City Council","http://opendatacommunities.org/id/metropolitan-district-council/wolverhampton","706697","Radis Community Care","0107201820180710","214.17","TPP - Home Care","190483003","11/07/2018","Older People Care Purchasing","OP Care Purchasing (Spot Placements)","R5420"
"Wolverhampton City Council","http://opendatacommunities.org/id/metropolitan-district-council/wolverhampton","706697","Radis Community Care","0107201820180710","235.95","TPP - Home Care","190483003","11/07/2018","Older People Care Purchasing","OP Care Purchasing (Spot Placements)","R5420"
"Wolverhampton City Council","http://opendatacommunities.org/id/metropolitan-district-council/wolverhampton","706697","Radis Community Care","0107201820180710","152.46","TPP - Home Care","190483003","11/07/2018","Older People Care Purchasing","OP Care Purchasing (Spot Placements)","R5420"
"Wolverhampton City Council","http://opendatacommunities.org/id/metropolitan-district-council/wolverhampton","706697","Radis Community Care","0107201820180710","101.64","TPP - Home Care","190483003","11/07/2018","Older People Care Purchasing","OP Care Purchasing (Spot Placements)","R5420"
"Wolverhampton City Council","http://opendatacommunities.org/id/metropolitan-district-council/wolverhampton","706697","Radis Community Care","0107201820180710","105.27","TPP - Home Care","190483003","11/07/2018","Older People Care Purchasing","OP Care Purchasing (Spot Placements)","R5420"
"Wolverhampton City Council","http://opendatacommunities.org/id/metropolitan-district-council/wolverhampton","706697","Radis Community Care","0107201820180710","94.38","TPP - Home Care","190483003","11/07/2018","Older People Care Purchasing","OP Care Purchasing (Spot Placements)","R5420"
"Wolverhampton City Council","http://opendatacommunities.org/id/metropolitan-district-council/wolverhampton","706697","Radis Community Care","0107201820180710","152.46","TPP - Home Care","190483003","11/07/2018","Older People Care Purchasing","OP Care Purchasing (Spot Placements)","R5420"
"Wolverhampton City Council","http://opendatacommunities.org/id/metropolitan-district-council/wolverhampton","706697","Radis Community Care","0107201820180710","101.64","TPP - Home Care","190483003","11/07/2018","Older People Care Purchasing","OP Care Purchasing (Spot Placements)","R5420"
"Wolverhampton City Council","http://opendatacommunities.org/id/metropolitan-district-council/wolverhampton","706697","Radis Community Care","0107201820180710","196.02","TPP - Home Care","190483003","11/07/2018","Older People Care Purchasing","OP Care Purchasing (Spot Placements)","R5420"
"Wolverhampton City Council","http://opendatacommunities.org/id/metropolitan-district-council/wolverhampton","706697","Radis Community Care","0107201820180710","50.82","TPP - Home Care","190483003","11/07/2018","Older People Care Purchasing","OP Care Purchasing (Spot Placements)","R5420"
"Wolverhampton City Council","http://opendatacommunities.org/id/metropolitan-district-council/wolverhampton","706697","Radis Community Care","0107201820180710","47.19","TPP - Home Care","190483003","11/07/2018","Older People Care Purchasing","OP Care Purchasing (Spot Placements)","R5420"
"Wolverhampton City Council","http://opendatacommunities.org/id/metropolitan-district-council/wolverhampton","706697","Radis Community Care","0107201820180710","36.30","TPP - Home Care","190483003","11/07/2018","Older People Care Purchasing","OP Care Purchasing (Spot Placements)","R5420"
"Wolverhampton City Council","http://opendatacommunities.org/id/metropolitan-district-council/wolverhampton","706697","Radis Community Care","0107201820180710","36.30","TPP - Home Care","190483003","11/07/2018","Older People Care Purchasing","OP Care Purchasing (Spot Placements)","R5420"
"Wolverhampton City Council","http://opendatacommunities.org/id/metropolitan-district-council/wolverhampton","706697","Radis Community Care","0107201820180710","76.23","TPP - Home Care","190483003","11/07/2018","Older People Care Purchasing","OP Care Purchasing (Spot Placements)","R5420"
"Wolverhampton City Council","http://opendatacommunities.org/id/metropolitan-district-council/wolverhampton","706697","Radis Community Care","0107201820180710","68.97","TPP - Home Care","190483003","11/07/2018","Older People Care Purchasing","OP Care Purchasing (Spot Placements)","R5420"
"Wolverhampton City Council","http://opendatacommunities.org/id/metropolitan-district-council/wolverhampton","706697","Radis Community Care","0107201820180710","243.21","TPP - Home Care","190483003","11/07/2018","Older People Care Purchasing","OP Care Purchasing (Spot Placements)","R5420"
"Wolverhampton City Council","http://opendatacommunities.org/id/metropolitan-district-council/wolverhampton","706697","Radis Community Care","0107201820180710","94.38","TPP - Home Care","190483003","11/07/2018","Older People Care Purchasing","OP Care Purchasing (Spot Placements)","R5420"
"Wolverhampton City Council","http://opendatacommunities.org/id/metropolitan-district-council/wolverhampton","706697","Radis Community Care","M10974","2,234.40","TPP - Home Care","130217849","11/07/2018","Independent Living Service","Telecare","R5420"
"Wolverhampton City Council","http://opendatacommunities.org/id/metropolitan-district-council/wolverhampton","706697","Radis Community Care","0807201820180719","199.65","TPP - Home Care","190487423","23/07/2018","Older People Care Purchasing","OP Care Purchasing (Spot Placements)","R5420"
"Wolverhampton City Council","http://opendatacommunities.org/id/metropolitan-district-council/wolverhampton","706697","Radis Community Care","0807201820180719","203.28","TPP - Home Care","190487423","23/07/2018","Older People Care Purchasing","OP Care Purchasing (Spot Placements)","R5420"
"Wolverhampton City Council","http://opendatacommunities.org/id/metropolitan-district-council/wolverhampton","706697","Radis Community Care","0807201820180719","79.86","TPP - Home Care","190487423","23/07/2018","Physical Disabilities Care Purchasing","PD Care Purchasing (Spot Placements)","R5420"
"Wolverhampton City Council","http://opendatacommunities.org/id/metropolitan-district-council/wolverhampton","706697","Radis Community Care","0807201820180719","54.45","TPP - Home Care","190487423","23/07/2018","Older People Care Purchasing","OP Care Purchasing (Spot Placements)","R5420"
"Wolverhampton City Council","http://opendatacommunities.org/id/metropolitan-district-council/wolverhampton","706697","Radis Community Care","0807201820180719","50.82","TPP - Home Care","190487423","23/07/2018","Physical Disabilities Care Purchasing","PD Care Purchasing (Spot Placements)","R5420"
"Wolverhampton City Council","http://opendatacommunities.org/id/metropolitan-district-council/wolverhampton","706697","Radis Community Care","0807201820180719","50.82","TPP - Home Care","190487423","23/07/2018","Physical Disabilities Care Purchasing","PD Care Purchasing (Spot Placements)","R5420"
"Wolverhampton City Council","http://opendatacommunities.org/id/metropolitan-district-council/wolverhampton","706697","Radis Community Care","0807201820180719","25.41","TPP - Home Care","190487423","23/07/2018","Physical Disabilities Care Purchasing","PD Care Purchasing (Spot Placements)","R5420"
"Wolverhampton City Council","http://opendatacommunities.org/id/metropolitan-district-council/wolverhampton","706697","Radis Community Care","0807201820180719","101.64","TPP - Home Care","190487423","23/07/2018","Older People Care Purchasing","OP Care Purchasing (Spot Placements)","R5420"
"Wolverhampton City Council","http://opendatacommunities.org/id/metropolitan-district-council/wolverhampton","706697","Radis Community Care","0807201820180719","196.02","TPP - Home Care","190487423","23/07/2018","Physical Disabilities Care Purchasing","PD Care Purchasing (Spot Placements)","R5420"
"Wolverhampton City Council","http://opendatacommunities.org/id/metropolitan-district-council/wolverhampton","706697","Radis Community Care","0807201820180719","203.28","TPP - Home Care","190487423","23/07/2018","Physical Disabilities Care Purchasing","PD Care Purchasing (Spot Placements)","R5420"
"Wolverhampton City Council","http://opendatacommunities.org/id/metropolitan-district-council/wolverhampton","706697","Radis Community Care","0807201820180719","232.32","TPP - Home Care","190487423","23/07/2018","Older People Care Purchasing","OP Care Purchasing (Spot Placements)","R5420"
"Wolverhampton City Council","http://opendatacommunities.org/id/metropolitan-district-council/wolverhampton","706697","Radis Community Care","0807201820180719","36.30","TPP - Home Care","190487423","23/07/2018","Older People Care Purchasing","OP Care Purchasing (Spot Placements)","R5420"
"Wolverhampton City Council","http://opendatacommunities.org/id/metropolitan-district-council/wolverhampton","706697","Radis Community Care","0807201820180719","457.38","TPP - Home Care","190487423","23/07/2018","Physical Disabilities Care Purchasing","PD Care Purchasing (Spot Placements)","R5420"
"Wolverhampton City Council","http://opendatacommunities.org/id/metropolitan-district-council/wolverhampton","706697","Radis Community Care","0807201820180719","493.68","TPP - Home Care","190487423","23/07/2018","Physical Disabilities Care Purchasing","PD Care Purchasing (Spot Placements)","R5420"
"Wolverhampton City Council","http://opendatacommunities.org/id/metropolitan-district-council/wolverhampton","706697","Radis Community Care","0807201820180719","76.23","TPP - Home Care","190487423","23/07/2018","Learning Disabilities Care Purchasing","LD Care Purchasing (Spot Placements)","R5420"
"Wolverhampton City Council","http://opendatacommunities.org/id/metropolitan-district-council/wolverhampton","706697","Radis Community Care","0807201820180719","243.21","TPP - Home Care","190487423","23/07/2018","Older People Care Purchasing","OP Care Purchasing (Spot Placements)","R5420"
"Wolverhampton City Council","http://opendatacommunities.org/id/metropolitan-district-council/wolverhampton","706697","Radis Community Care","0807201820180719","58.08","TPP - Home Care","190487423","23/07/2018","Older People Care Purchasing","OP Care Purchasing (Spot Placements)","R5420"
"Wolverhampton City Council","http://opendatacommunities.org/id/metropolitan-district-council/wolverhampton","706697","Radis Community Care","0807201820180719","14.52","TPP - Home Care","190487423","23/07/2018","Older People Care Purchasing","OP Care Purchasing (Spot Placements)","R5420"
"Wolverhampton City Council","http://opendatacommunities.org/id/metropolitan-district-council/wolverhampton","706697","Radis Community Care","0807201820180719","108.90","TPP - Home Care","190487423","23/07/2018","Older People Care Purchasing","OP Care Purchasing (Spot Placements)","R5420"
"Wolverhampton City Council","http://opendatacommunities.org/id/metropolitan-district-council/wolverhampton","706697","Radis Community Care","0807201820180719","232.32","TPP - Home Care","190487423","23/07/2018","Older People Care Purchasing","OP Care Purchasing (Spot Placements)","R5420"
"Wolverhampton City Council","http://opendatacommunities.org/id/metropolitan-district-council/wolverhampton","706697","Radis Community Care","0807201820180719","170.61","TPP - Home Care","190487423","23/07/2018","Older People Care Purchasing","OP Care Purchasing (Spot Placements)","R5420"
"Wolverhampton City Council","http://opendatacommunities.org/id/metropolitan-district-council/wolverhampton","706697","Radis Community Care","0807201820180719","105.27","TPP - Home Care","190487423","23/07/2018","Older People Care Purchasing","OP Care Purchasing (Spot Placements)","R5420"
"Wolverhampton City Council","http://opendatacommunities.org/id/metropolitan-district-council/wolverhampton","706697","Radis Community Care","0807201820180719","47.19","TPP - Home Care","190487423","23/07/2018","Older People Care Purchasing","OP Care Purchasing (Spot Placements)","R5420"
"Wolverhampton City Council","http://opendatacommunities.org/id/metropolitan-district-council/wolverhampton","706697","Radis Community Care","0807201820180719","50.82","TPP - Home Care","190487423","23/07/2018","Older People Care Purchasing","OP Care Purchasing (Spot Placements)","R5420"
"Wolverhampton City Council","http://opendatacommunities.org/id/metropolitan-district-council/wolverhampton","706697","Radis Community Care","0807201820180719","101.64","TPP - Home Care","190487423","23/07/2018","Older People Care Purchasing","OP Care Purchasing (Spot Placements)","R5420"
"Wolverhampton City Council","http://opendatacommunities.org/id/metropolitan-district-council/wolverhampton","706697","Radis Community Care","0807201820180719","21.78","TPP - Home Care","190487423","23/07/2018","Physical Disabilities Care Purchasing","PD Care Purchasing (Spot Placements)","R5420"
"Wolverhampton City Council","http://opendatacommunities.org/id/metropolitan-district-council/wolverhampton","706697","Radis Community Care","0807201820180719","188.76","TPP - Home Care","190487423","23/07/2018","Physical Disabilities Care Purchasing","PD Care Purchasing (Spot Placements)","R5420"
"Wolverhampton City Council","http://opendatacommunities.org/id/metropolitan-district-council/wolverhampton","706697","Radis Community Care","0807201820180719","39.93","TPP - Home Care","190487423","23/07/2018","Older People Care Purchasing","OP Care Purchasing (Spot Placements)","R5420"
"Wolverhampton City Council","http://opendatacommunities.org/id/metropolitan-district-council/wolverhampton","706697","Radis Community Care","0807201820180719","72.60","TPP - Home Care","190487423","23/07/2018","Physical Disabilities Care Purchasing","PD Care Purchasing (Spot Placements)","R5420"
"Wolverhampton City Council","http://opendatacommunities.org/id/metropolitan-district-council/wolverhampton","706697","Radis Community Care","0807201820180719","76.23","TPP - Home Care","190487423","23/07/2018","Physical Disabilities Care Purchasing","PD Care Purchasing (Spot Placements)","R5420"
"Wolverhampton City Council","http://opendatacommunities.org/id/metropolitan-district-council/wolverhampton","706697","Radis Community Care","0807201820180719","32.67","TPP - Home Care","190487423","23/07/2018","Physical Disabilities Care Purchasing","PD Care Purchasing (Spot Placements)","R5420"
"Wolverhampton City Council","http://opendatacommunities.org/id/metropolitan-district-council/wolverhampton","706697","Radis Community Care","0807201820180719","225.06","TPP - Home Care","190487423","23/07/2018","Older People Care Purchasing","OP Care Purchasing (Spot Placements)","R5420"
"Wolverhampton City Council","http://opendatacommunities.org/id/metropolitan-district-council/wolverhampton","706697","Radis Community Care","0807201820180719","232.32","TPP - Home Care","190487423","23/07/2018","Older People Care Purchasing","OP Care Purchasing (Spot Placements)","R5420"
"Wolverhampton City Council","http://opendatacommunities.org/id/metropolitan-district-council/wolverhampton","706697","Radis Community Care","0807201820180719","239.58","TPP - Home Care","190487423","23/07/2018","Older People Care Purchasing","OP Care Purchasing (Spot Placements)","R5420"
"Wolverhampton City Council","http://opendatacommunities.org/id/metropolitan-district-council/wolverhampton","706697","Radis Community Care","0807201820180719","156.09","TPP - Home Care","190487423","23/07/2018","Older People Care Purchasing","OP Care Purchasing (Spot Placements)","R5420"
"Wolverhampton City Council","http://opendatacommunities.org/id/metropolitan-district-council/wolverhampton","706697","Radis Community Care","0807201820180719","101.64","TPP - Home Care","190487423","23/07/2018","Older People Care Purchasing","OP Care Purchasing (Spot Placements)","R5420"
"Wolverhampton City Council","http://opendatacommunities.org/id/metropolitan-district-council/wolverhampton","706697","Radis Community Care","0807201820180719","50.82","TPP - Home Care","190487423","23/07/2018","Older People Care Purchasing","OP Care Purchasing (Spot Placements)","R5420"
"Wolverhampton City Council","http://opendatacommunities.org/id/metropolitan-district-council/wolverhampton","706697","Radis Community Care","0807201820180719","152.46","TPP - Home Care","190487423","23/07/2018","Older People Care Purchasing","OP Care Purchasing (Spot Placements)","R5420"
"Wolverhampton City Council","http://opendatacommunities.org/id/metropolitan-district-council/wolverhampton","706697","Radis Community Care","0807201820180719","156.09","TPP - Home Care","190487423","23/07/2018","Older People Care Purchasing","OP Care Purchasing (Spot Placements)","R5420"
"Wolverhampton City Council","http://opendatacommunities.org/id/metropolitan-district-council/wolverhampton","706697","Radis Community Care","0807201820180719","156.09","TPP - Home Care","190487423","23/07/2018","Older People Care Purchasing","OP Care Purchasing (Spot Placements)","R5420"
"Wolverhampton City Council","http://opendatacommunities.org/id/metropolitan-district-council/wolverhampton","706697","Radis Community Care","0807201820180719","7.26","TPP - Home Care","190487423","23/07/2018","Older People Care Purchasing","OP Care Purchasing (Spot Placements)","R5420"
"Wolverhampton City Council","http://opendatacommunities.org/id/metropolitan-district-council/wolverhampton","706697","Radis Community Care","0807201820180719","72.60","TPP - Home Care","190487423","23/07/2018","Older People Care Purchasing","OP Care Purchasing (Spot Placements)","R5420"
"Wolverhampton City Council","http://opendatacommunities.org/id/metropolitan-district-council/wolverhampton","706697","Radis Community Care","0807201820180719","105.27","TPP - Home Care","190487423","23/07/2018","Older People Care Purchasing","OP Care Purchasing (Spot Placements)","R5420"
"Wolverhampton City Council","http://opendatacommunities.org/id/metropolitan-district-council/wolverhampton","706697","Radis Community Care","0807201820180719","98.01","TPP - Home Care","190487423","23/07/2018","Older People Care Purchasing","OP Care Purchasing (Spot Placements)","R5420"
"Wolverhampton City Council","http://opendatacommunities.org/id/metropolitan-district-council/wolverhampton","706697","Radis Community Care","0807201820180719","36.30","TPP - Home Care","190487423","23/07/2018","Older People Care Purchasing","OP Care Purchasing (Spot Placements)","R5420"
"Wolverhampton City Council","http://opendatacommunities.org/id/metropolitan-district-council/wolverhampton","706697","Radis Community Care","0807201820180719","36.30","TPP - Home Care","190487423","23/07/2018","Older People Care Purchasing","OP Care Purchasing (Spot Placements)","R5420"
"Wolverhampton City Council","http://opendatacommunities.org/id/metropolitan-district-council/wolverhampton","706697","Radis Community Care","0807201820180719","50.82","TPP - Home Care","190487423","23/07/2018","Older People Care Purchasing","OP Care Purchasing (Spot Placements)","R5420"
"Wolverhampton City Council","http://opendatacommunities.org/id/metropolitan-district-council/wolverhampton","706697","Radis Community Care","0807201820180719","283.14","TPP - Home Care","190487423","23/07/2018","Physical Disabilities Care Purchasing","PD Care Purchasing (Spot Placements)","R5420"
"Wolverhampton City Council","http://opendatacommunities.org/id/metropolitan-district-council/wolverhampton","706697","Radis Community Care","0807201820180719","286.77","TPP - Home Care","190487423","23/07/2018","Physical Disabilities Care Purchasing","PD Care Purchasing (Spot Placements)","R5420"
"Wolverhampton City Council","http://opendatacommunities.org/id/metropolitan-district-council/wolverhampton","706697","Radis Community Care","0807201820180719","98.01","TPP - Home Care","190487423","23/07/2018","Older People Care Purchasing","OP Care Purchasing (Spot Placements)","R5420"
"Wolverhampton City Council","http://opendatacommunities.org/id/metropolitan-district-council/wolverhampton","706697","Radis Community Care","0807201820180719","29.04","TPP - Home Care","190487423","23/07/2018","Older People Care Purchasing","OP Care Purchasing (Spot Placements)","R5420"
"Wolverhampton City Council","http://opendatacommunities.org/id/metropolitan-district-council/wolverhampton","706697","Radis Community Care","0807201820180719","29.04","TPP - Home Care","190487423","23/07/2018","Older People Care Purchasing","OP Care Purchasing (Spot Placements)","R5420"
"Wolverhampton City Council","http://opendatacommunities.org/id/metropolitan-district-council/wolverhampton","706697","Radis Community Care","0807201820180719","29.04","TPP - Home Care","190487423","23/07/2018","Older People Care Purchasing","OP Care Purchasing (Spot Placements)","R5420"
"Wolverhampton City Council","http://opendatacommunities.org/id/metropolitan-district-council/wolverhampton","706697","Radis Community Care","0807201820180719","225.06","TPP - Home Care","190487423","23/07/2018","Physical Disabilities Care Purchasing","PD Care Purchasing (Spot Placements)","R5420"
"Wolverhampton City Council","http://opendatacommunities.org/id/metropolitan-district-council/wolverhampton","706697","Radis Community Care","0807201820180719","206.91","TPP - Home Care","190487423","23/07/2018","Older People Care Purchasing","OP Care Purchasing (Spot Placements)","R5420"
"Wolverhampton City Council","http://opendatacommunities.org/id/metropolitan-district-council/wolverhampton","706697","Radis Community Care","0807201820180719","101.64","TPP - Home Care","190487423","23/07/2018","Older People Care Purchasing","OP Care Purchasing (Spot Placements)","R5420"
"Wolverhampton City Council","http://opendatacommunities.org/id/metropolitan-district-council/wolverhampton","706697","Radis Community Care","0807201820180719","50.82","TPP - Home Care","190487423","23/07/2018","Older People Care Purchasing","OP Care Purchasing (Spot Placements)","R5420"
"Wolverhampton City Council","http://opendatacommunities.org/id/metropolitan-district-council/wolverhampton","706697","Radis Community Care","0807201820180719","50.82","TPP - Home Care","190487423","23/07/2018","Older People Care Purchasing","OP Care Purchasing (Spot Placements)","R5420"
"Wolverhampton City Council","http://opendatacommunities.org/id/metropolitan-district-council/wolverhampton","706697","Radis Community Care","0807201820180719","50.82","TPP - Home Care","190487423","23/07/2018","Older People Care Purchasing","OP Care Purchasing (Spot Placements)","R5420"
"Wolverhampton City Council","http://opendatacommunities.org/id/metropolitan-district-council/wolverhampton","706697","Radis Community Care","0807201820180719","50.82","TPP - Home Care","190487423","23/07/2018","Older People Care Purchasing","OP Care Purchasing (Spot Placements)","R5420"
"Wolverhampton City Council","http://opendatacommunities.org/id/metropolitan-district-council/wolverhampton","706697","Radis Community Care","0807201820180719","232.32","TPP - Home Care","190487423","23/07/2018","Older People Care Purchasing","OP Care Purchasing (Spot Placements)","R5420"
"Wolverhampton City Council","http://opendatacommunities.org/id/metropolitan-district-council/wolverhampton","706697","Radis Community Care","0807201820180719","243.21","TPP - Home Care","190487423","23/07/2018","Older People Care Purchasing","OP Care Purchasing (Spot Placements)","R5420"
"Wolverhampton City Council","http://opendatacommunities.org/id/metropolitan-district-council/wolverhampton","706697","Radis Community Care","0807201820180719","101.64","TPP - Home Care","190487423","23/07/2018","Older People Care Purchasing","OP Care Purchasing (Spot Placements)","R5420"
"Wolverhampton City Council","http://opendatacommunities.org/id/metropolitan-district-council/wolverhampton","706697","Radis Community Care","0807201820180719","152.46","TPP - Home Care","190487423","23/07/2018","Older People Care Purchasing","OP Care Purchasing (Spot Placements)","R5420"
"Wolverhampton City Council","http://opendatacommunities.org/id/metropolitan-district-council/wolverhampton","706697","Radis Community Care","0807201820180719","94.38","TPP - Home Care","190487423","23/07/2018","Older People Care Purchasing","OP Care Purchasing (Spot Placements)","R5420"
"Wolverhampton City Council","http://opendatacommunities.org/id/metropolitan-district-council/wolverhampton","706697","Radis Community Care","0807201820180719","166.98","TPP - Home Care","190487423","23/07/2018","Older People Care Purchasing","OP Care Purchasing (Spot Placements)","R5420"
"Wolverhampton City Council","http://opendatacommunities.org/id/metropolitan-district-council/wolverhampton","706697","Radis Community Care","0807201820180719","170.61","TPP - Home Care","190487423","23/07/2018","Older People Care Purchasing","OP Care Purchasing (Spot Placements)","R5420"
"Wolverhampton City Council","http://opendatacommunities.org/id/metropolitan-district-council/wolverhampton","706697","Radis Community Care","0807201820180719","94.38","TPP - Home Care","190487423","23/07/2018","Older People Care Purchasing","OP Care Purchasing (Spot Placements)","R5420"
"Wolverhampton City Council","http://opendatacommunities.org/id/metropolitan-district-council/wolverhampton","706697","Radis Community Care","0807201820180719","27.60","TPP - Carer Support Service","190487423","23/07/2018","Carer Support","CS Care Purchasing (Spot Placements)","R5421"
"Wolverhampton City Council","http://opendatacommunities.org/id/metropolitan-district-council/wolverhampton","706697","Radis Community Care","0807201820180719","221.43","TPP - Home Care","190487423","23/07/2018","Older People Care Purchasing","OP Care Purchasing (Spot Placements)","R5420"
"Wolverhampton City Council","http://opendatacommunities.org/id/metropolitan-district-council/wolverhampton","706697","Radis Community Care","0807201820180719","72.60","TPP - Home Care","190487423","23/07/2018","Physical Disabilities Care Purchasing","PD Care Purchasing (Spot Placements)","R5420"
"Wolverhampton City Council","http://opendatacommunities.org/id/metropolitan-district-council/wolverhampton","706697","Radis Community Care","0807201820180719","101.64","TPP - Home Care","190487423","23/07/2018","Older People Care Purchasing","OP Care Purchasing (Spot Placements)","R5420"
"Wolverhampton City Council","http://opendatacommunities.org/id/metropolitan-district-council/wolverhampton","706697","Radis Community Care","0807201820180719","192.39","TPP - Home Care","190487423","23/07/2018","Older People Care Purchasing","OP Care Purchasing (Spot Placements)","R5420"
"Wolverhampton City Council","http://opendatacommunities.org/id/metropolitan-district-council/wolverhampton","706697","Radis Community Care","0807201820180719","199.65","TPP - Home Care","190487423","23/07/2018","Older People Care Purchasing","OP Care Purchasing (Spot Placements)","R5420"
"Wolverhampton City Council","http://opendatacommunities.org/id/metropolitan-district-council/wolverhampton","706697","Radis Community Care","0807201820180719","145.20","TPP - Home Care","190487423","23/07/2018","Physical Disabilities Care Purchasing","PD Care Purchasing (Spot Placements)","R5420"
"Wolverhampton City Council","http://opendatacommunities.org/id/metropolitan-district-council/wolverhampton","706697","Radis Community Care","0807201820180719","159.72","TPP - Home Care","190487423","23/07/2018","Physical Disabilities Care Purchasing","PD Care Purchasing (Spot Placements)","R5420"
"Wolverhampton City Council","http://opendatacommunities.org/id/metropolitan-district-council/wolverhampton","706697","Radis Community Care","0807201820180719","50.82","TPP - Home Care","190487423","23/07/2018","Older People Care Purchasing","OP Care Purchasing (Spot Placements)","R5420"
"Wolverhampton City Council","http://opendatacommunities.org/id/metropolitan-district-council/wolverhampton","706697","Radis Community Care","0807201820180719","177.87","TPP - Home Care","190487423","23/07/2018","Physical Disabilities Care Purchasing","PD Care Purchasing (Spot Placements)","R5420"
"Wolverhampton City Council","http://opendatacommunities.org/id/metropolitan-district-council/wolverhampton","706697","Radis Community Care","0807201820180719","159.72","TPP - Home Care","190487423","23/07/2018","Physical Disabilities Care Purchasing","PD Care Purchasing (Spot Placements)","R5420"
"Wolverhampton City Council","http://opendatacommunities.org/id/metropolitan-district-council/wolverhampton","706697","Radis Community Care","0807201820180719","36.30","TPP - Home Care","190487423","23/07/2018","Older People Care Purchasing","OP Care Purchasing (Spot Placements)","R5420"
"Wolverhampton City Council","http://opendatacommunities.org/id/metropolitan-district-council/wolverhampton","706697","Radis Community Care","0807201820180719","174.24","TPP - Home Care","190487423","23/07/2018","Older People Care Purchasing","OP Care Purchasing (Spot Placements)","R5420"
"Wolverhampton City Council","http://opendatacommunities.org/id/metropolitan-district-council/wolverhampton","706697","Radis Community Care","0807201820180719","101.64","TPP - Home Care","190487423","23/07/2018","Older People Care Purchasing","OP Care Purchasing (Spot Placements)","R5420"
"Wolverhampton City Council","http://opendatacommunities.org/id/metropolitan-district-council/wolverhampton","706697","Radis Community Care","0807201820180719","101.64","TPP - Home Care","190487423","23/07/2018","Older People Care Purchasing","OP Care Purchasing (Spot Placements)","R5420"
"Wolverhampton City Council","http://opendatacommunities.org/id/metropolitan-district-council/wolverhampton","706697","Radis Community Care","0807201820180719","76.23","TPP - Home Care","190487423","23/07/2018","Older People Care Purchasing","OP Care Purchasing (Spot Placements)","R5420"
"Wolverhampton City Council","http://opendatacommunities.org/id/metropolitan-district-council/wolverhampton","706697","Radis Community Care","0807201820180719","206.91","TPP - Home Care","190487423","23/07/2018","Older People Care Purchasing","OP Care Purchasing (Spot Placements)","R5420"
"Wolverhampton City Council","http://opendatacommunities.org/id/metropolitan-district-council/wolverhampton","706697","Radis Community Care","0807201820180719","130.68","TPP - Home Care","190487423","23/07/2018","Older People Care Purchasing","OP Care Purchasing (Spot Placements)","R5420"
"Wolverhampton City Council","http://opendatacommunities.org/id/metropolitan-district-council/wolverhampton","706697","Radis Community Care","0807201820180719","29.04","TPP - Home Care","190487423","23/07/2018","Older People Care Purchasing","OP Care Purchasing (Spot Placements)","R5420"
"Wolverhampton City Council","http://opendatacommunities.org/id/metropolitan-district-council/wolverhampton","706697","Radis Community Care","0807201820180719","50.82","TPP - Home Care","190487423","23/07/2018","Older People Care Purchasing","OP Care Purchasing (Spot Placements)","R5420"
"Wolverhampton City Council","http://opendatacommunities.org/id/metropolitan-district-council/wolverhampton","706697","Radis Community Care","0807201820180719","36.30","TPP - Home Care","190487423","23/07/2018","Older People Care Purchasing","OP Care Purchasing (Spot Placements)","R5420"
"Wolverhampton City Council","http://opendatacommunities.org/id/metropolitan-district-council/wolverhampton","706697","Radis Community Care","0807201820180719","196.02","TPP - Home Care","190487423","23/07/2018","Older People Care Purchasing","OP Care Purchasing (Spot Placements)","R5420"
"Wolverhampton City Council","http://opendatacommunities.org/id/metropolitan-district-council/wolverhampton","706697","Radis Community Care","0807201820180719","101.64","TPP - Home Care","190487423","23/07/2018","Older People Care Purchasing","OP Care Purchasing (Spot Placements)","R5420"
"Wolverhampton City Council","http://opendatacommunities.org/id/metropolitan-district-council/wolverhampton","706697","Radis Community Care","0807201820180719","101.64","TPP - Home Care","190487423","23/07/2018","Older People Care Purchasing","OP Care Purchasing (Spot Placements)","R5420"
"Wolverhampton City Council","http://opendatacommunities.org/id/metropolitan-district-council/wolverhampton","706697","Radis Community Care","0807201820180719","101.64","TPP - Home Care","190487423","23/07/2018","Older People Care Purchasing","OP Care Purchasing (Spot Placements)","R5420"
"Wolverhampton City Council","http://opendatacommunities.org/id/metropolitan-district-council/wolverhampton","706697","Radis Community Care","0807201820180719","69.00","TPP - Carer Support Service","190487423","23/07/2018","Carer Support","CS Care Purchasing (Spot Placements)","R5421"
"Wolverhampton City Council","http://opendatacommunities.org/id/metropolitan-district-council/wolverhampton","706697","Radis Community Care","0807201820180719","188.76","TPP - Home Care","190487423","23/07/2018","Older People Care Purchasing","OP Care Purchasing (Spot Placements)","R5420"
"Wolverhampton City Council","http://opendatacommunities.org/id/metropolitan-district-council/wolverhampton","706697","Radis Community Care","0807201820180719","181.50","TPP - Home Care","190487423","23/07/2018","Older People Care Purchasing","OP Care Purchasing (Spot Placements)","R5420"
"Wolverhampton City Council","http://opendatacommunities.org/id/metropolitan-district-council/wolverhampton","706697","Radis Community Care","0807201820180719","203.28","TPP - Home Care","190487423","23/07/2018","Older People Care Purchasing","OP Care Purchasing (Spot Placements)","R5420"
"Wolverhampton City Council","http://opendatacommunities.org/id/metropolitan-district-council/wolverhampton","706697","Radis Community Care","0807201820180719","156.09","TPP - Home Care","190487423","23/07/2018","Older People Care Purchasing","OP Care Purchasing (Spot Placements)","R5420"
"Wolverhampton City Council","http://opendatacommunities.org/id/metropolitan-district-council/wolverhampton","706697","Radis Community Care","0807201820180719","235.95","TPP - Home Care","190487423","23/07/2018","Older People Care Purchasing","OP Care Purchasing (Spot Placements)","R5420"
"Wolverhampton City Council","http://opendatacommunities.org/id/metropolitan-district-council/wolverhampton","706697","Radis Community Care","0807201820180719","210.54","TPP - Home Care","190487423","23/07/2018","Older People Care Purchasing","OP Care Purchasing (Spot Placements)","R5420"
"Wolverhampton City Council","http://opendatacommunities.org/id/metropolitan-district-council/wolverhampton","706697","Radis Community Care","0807201820180719","203.28","TPP - Home Care","190487423","23/07/2018","Older People Care Purchasing","OP Care Purchasing (Spot Placements)","R5420"
"Wolverhampton City Council","http://opendatacommunities.org/id/metropolitan-district-council/wolverhampton","706697","Radis Community Care","0807201820180719","87.12","TPP - Home Care","190487423","23/07/2018","Older People Care Purchasing","OP Care Purchasing (Spot Placements)","R5420"
"Wolverhampton City Council","http://opendatacommunities.org/id/metropolitan-district-council/wolverhampton","706697","Radis Community Care","0807201820180719","76.23","TPP - Home Care","190487423","23/07/2018","Older People Care Purchasing","OP Care Purchasing (Spot Placements)","R5420"
"Wolverhampton City Council","http://opendatacommunities.org/id/metropolitan-district-council/wolverhampton","706697","Radis Community Care","0807201820180719","41.40","TPP - Carer Support Service","190487423","23/07/2018","Carer Support","CS Care Purchasing (Spot Placements)","R5421"
"Wolverhampton City Council","http://opendatacommunities.org/id/metropolitan-district-council/wolverhampton","706697","Radis Community Care","0807201820180719","214.17","TPP - Home Care","190487423","23/07/2018","Older People Care Purchasing","OP Care Purchasing (Spot Placements)","R5420"
"Wolverhampton City Council","http://opendatacommunities.org/id/metropolitan-district-council/wolverhampton","706697","Radis Community Care","0807201820180719","152.46","TPP - Home Care","190487423","23/07/2018","Older People Care Purchasing","OP Care Purchasing (Spot Placements)","R5420"
"Wolverhampton City Council","http://opendatacommunities.org/id/metropolitan-district-council/wolverhampton","706697","Radis Community Care","0807201820180719","199.65","TPP - Home Care","190487423","23/07/2018","Older People Care Purchasing","OP Care Purchasing (Spot Placements)","R5420"
"Wolverhampton City Council","http://opendatacommunities.org/id/metropolitan-district-council/wolverhampton","706697","Radis Community Care","0807201820180719","203.28","TPP - Home Care","190487423","23/07/2018","Older People Care Purchasing","OP Care Purchasing (Spot Placements)","R5420"
"Wolverhampton City Council","http://opendatacommunities.org/id/metropolitan-district-council/wolverhampton","706697","Radis Community Care","0807201820180719","225.06","TPP - Home Care","190487423","23/07/2018","Older People Care Purchasing","OP Care Purchasing (Spot Placements)","R5420"
"Wolverhampton City Council","http://opendatacommunities.org/id/metropolitan-district-council/wolverhampton","706697","Radis Community Care","0807201820180719","203.28","TPP - Home Care","190487423","23/07/2018","Older People Care Purchasing","OP Care Purchasing (Spot Placements)","R5420"
"Wolverhampton City Council","http://opendatacommunities.org/id/metropolitan-district-council/wolverhampton","706697","Radis Community Care","0807201820180719","203.28","TPP - Home Care","190487423","23/07/2018","Older People Care Purchasing","OP Care Purchasing (Spot Placements)","R5420"
"Wolverhampton City Council","http://opendatacommunities.org/id/metropolitan-district-council/wolverhampton","706697","Radis Community Care","0807201820180719","98.01","TPP - Home Care","190487423","23/07/2018","Older People Care Purchasing","OP Care Purchasing (Spot Placements)","R5420"
"Wolverhampton City Council","http://opendatacommunities.org/id/metropolitan-district-council/wolverhampton","706697","Radis Community Care","0807201820180719","145.20","TPP - Home Care","190487423","23/07/2018","Older People Care Purchasing","OP Care Purchasing (Spot Placements)","R5420"
"Wolverhampton City Council","http://opendatacommunities.org/id/metropolitan-district-council/wolverhampton","706697","Radis Community Care","0807201820180719","101.64","TPP - Home Care","190487423","23/07/2018","Older People Care Purchasing","OP Care Purchasing (Spot Placements)","R5420"
"Wolverhampton City Council","http://opendatacommunities.org/id/metropolitan-district-council/wolverhampton","706697","Radis Community Care","0807201820180719","399.30","TPP - Home Care","190487423","23/07/2018","Older People Care Purchasing","OP Care Purchasing (Spot Placements)","R5420"
"Wolverhampton City Council","http://opendatacommunities.org/id/metropolitan-district-council/wolverhampton","706697","Radis Community Care","0807201820180719","148.83","TPP - Home Care","190487423","23/07/2018","Older People Care Purchasing","OP Care Purchasing (Spot Placements)","R5420"
"Wolverhampton City Council","http://opendatacommunities.org/id/metropolitan-district-council/wolverhampton","706697","Radis Community Care","0807201820180719","203.28","TPP - Home Care","190487423","23/07/2018","Physical Disabilities Care Purchasing","PD Care Purchasing (Spot Placements)","R5420"
"Wolverhampton City Council","http://opendatacommunities.org/id/metropolitan-district-council/wolverhampton","706697","Radis Community Care","0807201820180719","203.28","TPP - Home Care","190487423","23/07/2018","Physical Disabilities Care Purchasing","PD Care Purchasing (Spot Placements)","R5420"
"Wolverhampton City Council","http://opendatacommunities.org/id/metropolitan-district-council/wolverhampton","706697","Radis Community Care","0807201820180719","254.10","TPP - Home Care","190487423","23/07/2018","Older People Care Purchasing","OP Care Purchasing (Spot Placements)","R5420"
"Wolverhampton City Council","http://opendatacommunities.org/id/metropolitan-district-council/wolverhampton","706697","Radis Community Care","0807201820180719","137.94","TPP - Home Care","190487423","23/07/2018","Older People Care Purchasing","OP Care Purchasing (Spot Placements)","R5420"
"Wolverhampton City Council","http://opendatacommunities.org/id/metropolitan-district-council/wolverhampton","706697","Radis Community Care","0807201820180719","7.26","TPP - Home Care","190487423","23/07/2018","Older People Care Purchasing","OP Care Purchasing (Spot Placements)","R5420"
"Wolverhampton City Council","http://opendatacommunities.org/id/metropolitan-district-council/wolverhampton","706697","Radis Community Care","0807201820180719","203.28","TPP - Home Care","190487423","23/07/2018","Older People Care Purchasing","OP Care Purchasing (Spot Placements)","R5420"
"Wolverhampton City Council","http://opendatacommunities.org/id/metropolitan-district-council/wolverhampton","706697","Radis Community Care","0807201820180719","232.32","TPP - Home Care","190487423","23/07/2018","Older People Care Purchasing","OP Care Purchasing (Spot Placements)","R5420"
"Wolverhampton City Council","http://opendatacommunities.org/id/metropolitan-district-council/wolverhampton","706697","Radis Community Care","0807201820180719","101.64","TPP - Home Care","190487423","23/07/2018","Physical Disabilities Care Purchasing","PD Care Purchasing (Spot Placements)","R5420"
"Wolverhampton City Council","http://opendatacommunities.org/id/metropolitan-district-council/wolverhampton","706697","Radis Community Care","0807201820180719","101.64","TPP - Home Care","190487423","23/07/2018","Physical Disabilities Care Purchasing","PD Care Purchasing (Spot Placements)","R5420"
"Wolverhampton City Council","http://opendatacommunities.org/id/metropolitan-district-council/wolverhampton","706697","Radis Community Care","0807201820180719","203.28","TPP - Home Care","190487423","23/07/2018","Older People Care Purchasing","OP Care Purchasing (Spot Placements)","R5420"
"Wolverhampton City Council","http://opendatacommunities.org/id/metropolitan-district-council/wolverhampton","706697","Radis Community Care","0807201820180719","94.38","TPP - Home Care","190487423","23/07/2018","Older People Care Purchasing","OP Care Purchasing (Spot Placements)","R5420"
"Wolverhampton City Council","http://opendatacommunities.org/id/metropolitan-district-council/wolverhampton","706697","Radis Community Care","0807201820180719","101.64","TPP - Home Care","190487423","23/07/2018","Older People Care Purchasing","OP Care Purchasing (Spot Placements)","R5420"
"Wolverhampton City Council","http://opendatacommunities.org/id/metropolitan-district-council/wolverhampton","706697","Radis Community Care","0807201820180719","206.91","TPP - Home Care","190487423","23/07/2018","Older People Care Purchasing","OP Care Purchasing (Spot Placements)","R5420"
"Wolverhampton City Council","http://opendatacommunities.org/id/metropolitan-district-council/wolverhampton","706697","Radis Community Care","0807201820180719","156.09","TPP - Home Care","190487423","23/07/2018","Older People Care Purchasing","OP Care Purchasing (Spot Placements)","R5420"
"Wolverhampton City Council","http://opendatacommunities.org/id/metropolitan-district-council/wolverhampton","706697","Radis Community Care","0807201820180719","105.27","TPP - Home Care","190487423","23/07/2018","Older People Care Purchasing","OP Care Purchasing (Spot Placements)","R5420"
"Wolverhampton City Council","http://opendatacommunities.org/id/metropolitan-district-council/wolverhampton","706697","Radis Community Care","0807201820180719","101.64","TPP - Home Care","190487423","23/07/2018","Older People Care Purchasing","OP Care Purchasing (Spot Placements)","R5420"
"Wolverhampton City Council","http://opendatacommunities.org/id/metropolitan-district-council/wolverhampton","706697","Radis Community Care","0807201820180719","156.09","TPP - Home Care","190487423","23/07/2018","Older People Care Purchasing","OP Care Purchasing (Spot Placements)","R5420"
"Wolverhampton City Council","http://opendatacommunities.org/id/metropolitan-district-council/wolverhampton","706697","Radis Community Care","0807201820180719","101.64","TPP - Home Care","190487423","23/07/2018","Older People Care Purchasing","OP Care Purchasing (Spot Placements)","R5420"
"Wolverhampton City Council","http://opendatacommunities.org/id/metropolitan-district-council/wolverhampton","706697","Radis Community Care","0807201820180719","203.28","TPP - Home Care","190487423","23/07/2018","Older People Care Purchasing","OP Care Purchasing (Spot Placements)","R5420"
"Wolverhampton City Council","http://opendatacommunities.org/id/metropolitan-district-council/wolverhampton","706697","Radis Community Care","0807201820180719","47.19","TPP - Home Care","190487423","23/07/2018","Older People Care Purchasing","OP Care Purchasing (Spot Placements)","R5420"
"Wolverhampton City Council","http://opendatacommunities.org/id/metropolitan-district-council/wolverhampton","706697","Radis Community Care","0807201820180719","43.56","TPP - Home Care","190487423","23/07/2018","Older People Care Purchasing","OP Care Purchasing (Spot Placements)","R5420"
"Wolverhampton City Council","http://opendatacommunities.org/id/metropolitan-district-council/wolverhampton","706697","Radis Community Care","0807201820180719","25.41","TPP - Home Care","190487423","23/07/2018","Older People Care Purchasing","OP Care Purchasing (Spot Placements)","R5420"
"Wolverhampton City Council","http://opendatacommunities.org/id/metropolitan-district-council/wolverhampton","706697","Radis Community Care","0807201820180719","21.78","TPP - Home Care","190487423","23/07/2018","Older People Care Purchasing","OP Care Purchasing (Spot Placements)","R5420"
"Wolverhampton City Council","http://opendatacommunities.org/id/metropolitan-district-council/wolverhampton","706697","Radis Community Care","0807201820180719","185.13","TPP - Home Care","190487423","23/07/2018","Older People Care Purchasing","OP Care Purchasing (Spot Placements)","R5420"
"Wolverhampton City Council","http://opendatacommunities.org/id/metropolitan-district-council/wolverhampton","706697","Radis Community Care","0807201820180719","170.61","TPP - Home Care","190487423","23/07/2018","Older People Care Purchasing","OP Care Purchasing (Spot Placements)","R5420"
"Wolverhampton City Council","http://opendatacommunities.org/id/metropolitan-district-council/wolverhampton","706697","Radis Community Care","0807201820180719","225.06","TPP - Home Care","190487423","23/07/2018","Older People Care Purchasing","OP Care Purchasing (Spot Placements)","R5420"
"Wolverhampton City Council","http://opendatacommunities.org/id/metropolitan-district-council/wolverhampton","706697","Radis Community Care","0807201820180719","235.95","TPP - Home Care","190487423","23/07/2018","Older People Care Purchasing","OP Care Purchasing (Spot Placements)","R5420"
"Wolverhampton City Council","http://opendatacommunities.org/id/metropolitan-district-council/wolverhampton","706697","Radis Community Care","0807201820180719","50.82","TPP - Home Care","190487423","23/07/2018","Older People Care Purchasing","OP Care Purchasing (Spot Placements)","R5420"
"Wolverhampton City Council","http://opendatacommunities.org/id/metropolitan-district-council/wolverhampton","706705","Rainbow Taxis Limited","6158","1,260.00","Client Transport","130221840","18/07/2018","Learning Disabilities Care Purchasing","LD Care Purchasing (Spot Placements)","R3042"
"Wolverhampton City Council","http://opendatacommunities.org/id/metropolitan-district-council/wolverhampton","706705","Rainbow Taxis Limited","6147","1,477.92","Client Transport","130222184","11/07/2018","Special Educational Needs","Special - Transport","R3042"
"Wolverhampton City Council","http://opendatacommunities.org/id/metropolitan-district-council/wolverhampton","706705","Rainbow Taxis Limited","6149","1,463.00","Client Transport","130222186","11/07/2018","Special Educational Needs","Primary - Transport","R3042"
"Wolverhampton City Council","http://opendatacommunities.org/id/metropolitan-district-council/wolverhampton","706705","Rainbow Taxis Limited","6153","1,664.00","Client Transport","130222190","11/07/2018","Special Educational Needs","Special - Transport","R3042"
"Wolverhampton City Council","http://opendatacommunities.org/id/metropolitan-district-council/wolverhampton","706705","Rainbow Taxis Limited","6152","1,088.00","Client Transport","130222189","11/07/2018","Special Educational Needs","Student Awards","R3042"
"Wolverhampton City Council","http://opendatacommunities.org/id/metropolitan-district-council/wolverhampton","706705","Rainbow Taxis Limited","6133","1,182.60","Client Transport","130222171","11/07/2018","Special Educational Needs","Special - Transport","R3042"
"Wolverhampton City Council","http://opendatacommunities.org/id/metropolitan-district-council/wolverhampton","706705","Rainbow Taxis Limited","6146","1,168.20","Client Transport","130222183","11/07/2018","Special Educational Needs","Special - Transport","R3042"
"Wolverhampton City Council","http://opendatacommunities.org/id/metropolitan-district-council/wolverhampton","706705","Rainbow Taxis Limited","6131","1,424.50","Client Transport","130222169","11/07/2018","Special Educational Needs","Special - Transport","R3042"
"Wolverhampton City Council","http://opendatacommunities.org/id/metropolitan-district-council/wolverhampton","706705","Rainbow Taxis Limited","6132","1,184.92","Client Transport","130222170","11/07/2018","Special Educational Needs","Special - Transport","R3042"
"Wolverhampton City Council","http://opendatacommunities.org/id/metropolitan-district-council/wolverhampton","706705","Rainbow Taxis Limited","6135","928.00","Client Transport","130222173","11/07/2018","Special Educational Needs","Special - Transport","R3042"
"Wolverhampton City Council","http://opendatacommunities.org/id/metropolitan-district-council/wolverhampton","706705","Rainbow Taxis Limited","6139","1,634.76","Client Transport","130222176","11/07/2018","Special Educational Needs","Special - Transport","R3042"
"Wolverhampton City Council","http://opendatacommunities.org/id/metropolitan-district-council/wolverhampton","706705","Rainbow Taxis Limited","6134","1,535.40","Client Transport","130222172","11/07/2018","Special Educational Needs","Special - Transport","R3042"
"Wolverhampton City Council","http://opendatacommunities.org/id/metropolitan-district-council/wolverhampton","706705","Rainbow Taxis Limited","6159","1,260.00","Client Transport","130221841","18/07/2018","Learning Disabilities Care Purchasing","LD Care Purchasing (Spot Placements)","R3042"
"Wolverhampton City Council","http://opendatacommunities.org/id/metropolitan-district-council/wolverhampton","706705","Rainbow Taxis Limited","6144","1,597.90","Client Transport","130222181","11/07/2018","Special Educational Needs","Primary - Transport","R3042"
"Wolverhampton City Council","http://opendatacommunities.org/id/metropolitan-district-council/wolverhampton","706705","Rainbow Taxis Limited","6145","1,326.00","Client Transport","130222182","11/07/2018","Special Educational Needs","Special - Transport","R3042"
"Wolverhampton City Council","http://opendatacommunities.org/id/metropolitan-district-council/wolverhampton","706705","Rainbow Taxis Limited","6148","1,577.00","Client Transport","130222185","11/07/2018","Special Educational Needs","Primary - Transport","R3042"
"Wolverhampton City Council","http://opendatacommunities.org/id/metropolitan-district-council/wolverhampton","706705","Rainbow Taxis Limited","6136","1,134.68","Client Transport","130222174","11/07/2018","Special Educational Needs","Special - Transport","R3042"
"Wolverhampton City Council","http://opendatacommunities.org/id/metropolitan-district-council/wolverhampton","706705","Rainbow Taxis Limited","6143","1,460.00","Client Transport","130222180","11/07/2018","Special Educational Needs","Special - Transport","R3042"
"Wolverhampton City Council","http://opendatacommunities.org/id/metropolitan-district-council/wolverhampton","706705","Rainbow Taxis Limited","6141","1,700.00","Client Transport","130222178","11/07/2018","Special Educational Needs","Special - Transport","R3042"
"Wolverhampton City Council","http://opendatacommunities.org/id/metropolitan-district-council/wolverhampton","706705","Rainbow Taxis Limited","6151","1,303.40","Client Transport","130222188","11/07/2018","Special Educational Needs","Special - Transport","R3042"
"Wolverhampton City Council","http://opendatacommunities.org/id/metropolitan-district-council/wolverhampton","706705","Rainbow Taxis Limited","6154","1,460.00","Client Transport","130222191","11/07/2018","Special Educational Needs","Home to College Transport","R3042"
"Wolverhampton City Council","http://opendatacommunities.org/id/metropolitan-district-council/wolverhampton","706705","Rainbow Taxis Limited","6150","1,577.00","Client Transport","130222187","11/07/2018","Special Educational Needs","Primary - Transport","R3042"
"Wolverhampton City Council","http://opendatacommunities.org/id/metropolitan-district-council/wolverhampton","706705","Rainbow Taxis Limited","6138","928.20","Client Transport","130222175","11/07/2018","Special Educational Needs","Special - Transport","R3042"
"Wolverhampton City Council","http://opendatacommunities.org/id/metropolitan-district-council/wolverhampton","706705","Rainbow Taxis Limited","6142","1,615.00","Client Transport","130222179","11/07/2018","Special Educational Needs","Special - Transport","R3042"
"Wolverhampton City Council","http://opendatacommunities.org/id/metropolitan-district-council/wolverhampton","706705","Rainbow Taxis Limited","6140","1,668.20","Client Transport","130222177","11/07/2018","Special Educational Needs","Special - Transport","R3042"
"Wolverhampton City Council","http://opendatacommunities.org/id/metropolitan-district-council/wolverhampton","706705","Rainbow Taxis Limited","6137","1,007.50","Client Transport","130222353","13/07/2018","Special Educational Needs","Special - Transport","R3042"
"Wolverhampton City Council","http://opendatacommunities.org/id/metropolitan-district-council/wolverhampton","706705","Rainbow Taxis Limited","6160","1,260.00","Client Transport","130221842","18/07/2018","Learning Disabilities Care Purchasing","LD Care Purchasing (Spot Placements)","R3042"
"Wolverhampton City Council","http://opendatacommunities.org/id/metropolitan-district-council/wolverhampton","706718","Raring2Go","R2G01162","485.00","Marketing \ Non-staff advertising","130219247","11/07/2018","Visitor Economy","Arts Publicity","R4317"
"Wolverhampton City Council","http://opendatacommunities.org/id/metropolitan-district-council/wolverhampton","706778","Reedsrains","TWU001T721062018","600.00","Rent","130219545","11/07/2018","Child Protection","CIN/CP Social Work Unit - Area 3","R2200"
"Wolverhampton City Council","http://opendatacommunities.org/id/metropolitan-district-council/wolverhampton","706779","Re-Entry Project","7817","1,728.00","TPP - Alternative Provision of Education","130223439","25/07/2018","Special Educational Needs","SEN Education OOC","R5037"
"Wolverhampton City Council","http://opendatacommunities.org/id/metropolitan-district-council/wolverhampton","706779","Re-Entry Project","7705","1,008.00","TPP - Alternative Provision of Education","130220819","04/07/2018","Special Educational Needs","SEN Education OOC","R5037"
"Wolverhampton City Council","http://opendatacommunities.org/id/metropolitan-district-council/wolverhampton","706779","Re-Entry Project","7909","432.00","TPP - Alternative Provision of Education","130223747","27/07/2018","Specialist Support","Alternative Provision","R5037"
"Wolverhampton City Council","http://opendatacommunities.org/id/metropolitan-district-council/wolverhampton","706779","Re-Entry Project","7905","912.00","TPP - Alternative Provision of Education","130223745","27/07/2018","Specialist Support","Alternative Provision","R5037"
"Wolverhampton City Council","http://opendatacommunities.org/id/metropolitan-district-council/wolverhampton","706779","Re-Entry Project","Re-Entry June Invoices","13,890.00","TPP - Alternative Provision of Education","130222536","17/07/2018","Specialist Support","Vulnerable Young Persons Team","R5037"
"Wolverhampton City Council","http://opendatacommunities.org/id/metropolitan-district-council/wolverhampton","706779","Re-Entry Project","7913","1,584.00","TPP - Alternative Provision of Education","130223748","27/07/2018","Specialist Support","Alternative Provision","R5037"
"Wolverhampton City Council","http://opendatacommunities.org/id/metropolitan-district-council/wolverhampton","706779","Re-Entry Project","7819","1,584.00","TPP - Alternative Provision of Education","130223440","25/07/2018","Special Educational Needs","SEN Education OOC","R5037"
"Wolverhampton City Council","http://opendatacommunities.org/id/metropolitan-district-council/wolverhampton","706779","Re-Entry Project","7901","1,296.00","TPP - Alternative Provision of Education","130223744","27/07/2018","Specialist Support","Alternative Provision","R5037"
"Wolverhampton City Council","http://opendatacommunities.org/id/metropolitan-district-council/wolverhampton","706779","Re-Entry Project","P17911120180713","600.00","Grant Payments to Individuals","190484668","17/07/2018","Looked After Children","Pupil Premium","R6402"
"Wolverhampton City Council","http://opendatacommunities.org/id/metropolitan-district-council/wolverhampton","706779","Re-Entry Project","7952","288.00","TPP - Alternative Provision of Education","130223749","27/07/2018","Specialist Support","Alternative Provision","R5037"
"Wolverhampton City Council","http://opendatacommunities.org/id/metropolitan-district-council/wolverhampton","706779","Re-Entry Project","7906","144.00","TPP - Alternative Provision of Education","130223746","27/07/2018","Specialist Support","Alternative Provision","R5037"
"Wolverhampton City Council","http://opendatacommunities.org/id/metropolitan-district-council/wolverhampton","706781","Rees Page Solicitors","M5096","1,513.10","Services - Professional Fees","190482790","11/07/2018","Legal Services","Centralised External Legal Costs","R4400"
"Wolverhampton City Council","http://opendatacommunities.org/id/metropolitan-district-council/wolverhampton","706781","Rees Page Solicitors","M5096-CourtFee","215.00","Services - Professional Fees","190482791","11/07/2018","Legal Services","Centralised External Legal Costs","R4400"
"Wolverhampton City Council","http://opendatacommunities.org/id/metropolitan-district-council/wolverhampton","706834","Richard James Anderson","1080","3,595.00","Services - Professional Fees","130220660","25/07/2018","Headstart","Headstart - Learning Technologies Team","R4400"
"Wolverhampton City Council","http://opendatacommunities.org/id/metropolitan-district-council/wolverhampton","706856","Rigby Taylor Limited","RSIN0265398","450.00","Materials","130220963","25/07/2018","Environmental Maintenance","Ground Maintenance East","R4007"
"Wolverhampton City Council","http://opendatacommunities.org/id/metropolitan-district-council/wolverhampton","706856","Rigby Taylor Limited","RSIN0264432","4,200.00","Equipment - Hire","130220109","18/07/2018","Environmental Maintenance","Ground Maintenance East","R4001"
"Wolverhampton City Council","http://opendatacommunities.org/id/metropolitan-district-council/wolverhampton","706856","Rigby Taylor Limited","RSIN0265677","350.00","Equipment - Hire","130221382","25/07/2018","Environmental Maintenance","Ground Maintenance East","R4001"
"Wolverhampton City Council","http://opendatacommunities.org/id/metropolitan-district-council/wolverhampton","706868","Rmc Mechanical Services Limited","A23156","65.34","R&M - Departmental planned (external)","130222907","25/07/2018","Maintenance Programme","Centralised R&M","R2001"
"Wolverhampton City Council","http://opendatacommunities.org/id/metropolitan-district-council/wolverhampton","706868","Rmc Mechanical Services Limited","A23137","111.10","R&M - Departmental planned (external)","130223194","25/07/2018","Maintenance Programme","Centralised R&M","R2001"
"Wolverhampton City Council","http://opendatacommunities.org/id/metropolitan-district-council/wolverhampton","706868","Rmc Mechanical Services Limited","A23168","325.63","R&M - Departmental planned (external)","130223198","25/07/2018","Bereavement Services","Crematorium","R2001"
"Wolverhampton City Council","http://opendatacommunities.org/id/metropolitan-district-council/wolverhampton","706868","Rmc Mechanical Services Limited","A23166","252.99","R&M - Departmental planned (external)","130223196","25/07/2018","Markets","Bilston Market and Licensed Operations","R2001"
"Wolverhampton City Council","http://opendatacommunities.org/id/metropolitan-district-council/wolverhampton","706868","Rmc Mechanical Services Limited","A23103","55.55","R&M - Departmental planned (external)","130221850","11/07/2018","Facilities Management","Bilston Town Hall","R2001"
"Wolverhampton City Council","http://opendatacommunities.org/id/metropolitan-district-council/wolverhampton","706868","Rmc Mechanical Services Limited","A23048","1,980.00","R&M - Departmental planned (external)","130221383","11/07/2018","Maintenance Programme","Civic Centre Repairs & Maintenance","R2001"
"Wolverhampton City Council","http://opendatacommunities.org/id/metropolitan-district-council/wolverhampton","706868","Rmc Mechanical Services Limited","A22322","3,000.00","R&M - Departmental planned (external)","130222508","13/07/2018","Schools","The King�s Church of England School","R2001"
"Wolverhampton City Council","http://opendatacommunities.org/id/metropolitan-district-council/wolverhampton","706868","Rmc Mechanical Services Limited","A23023","13.08","R&M - Departmental planned (external)","130221844","13/07/2018","Maintenance Programme","Centralised R&M","R2001"
"Wolverhampton City Council","http://opendatacommunities.org/id/metropolitan-district-council/wolverhampton","706868","Rmc Mechanical Services Limited","A23023","98.02","R&M - Departmental planned (external)","130221844","13/07/2018","Maintenance Programme","Centralised R&M","R2001"
"Wolverhampton City Council","http://opendatacommunities.org/id/metropolitan-district-council/wolverhampton","706868","Rmc Mechanical Services Limited","A22985","749.33","R&M - Departmental planned (external)","130220420","04/07/2018","Maintenance Programme","Centralised R&M","R2001"
"Wolverhampton City Council","http://opendatacommunities.org/id/metropolitan-district-council/wolverhampton","706868","Rmc Mechanical Services Limited","A23153","128.92","R&M - Departmental planned (external)","130222724","23/07/2018","Maintenance Programme","Centralised R&M","R2001"
"Wolverhampton City Council","http://opendatacommunities.org/id/metropolitan-district-council/wolverhampton","706868","Rmc Mechanical Services Limited","A23113","1,054.50","R&M - Departmental planned (external)","130222192","18/07/2018","Maintenance Programme","Centralised R&M","R2001"
"Wolverhampton City Council","http://opendatacommunities.org/id/metropolitan-district-council/wolverhampton","706868","Rmc Mechanical Services Limited","A23150","168.26","R&M - Departmental planned (external)","130222721","23/07/2018","Maintenance Programme","Centralised R&M","R2001"
"Wolverhampton City Council","http://opendatacommunities.org/id/metropolitan-district-council/wolverhampton","706868","Rmc Mechanical Services Limited","A23130","460.50","R&M - Departmental planned (external)","130222467","18/07/2018","Maintenance Programme","Centralised R&M","R2001"
"Wolverhampton City Council","http://opendatacommunities.org/id/metropolitan-district-council/wolverhampton","706868","Rmc Mechanical Services Limited","A23133","36,331.50","Construction and Conversion","130222540","18/07/2018","-","Capital Maintenance - Heating Pipework Upgrades","C1100"
"Wolverhampton City Council","http://opendatacommunities.org/id/metropolitan-district-council/wolverhampton","706868","Rmc Mechanical Services Limited","A22299","563.99","R&M - Departmental planned (external)","130221843","18/07/2018","Maintenance Programme","Centralised R&M","R2001"
"Wolverhampton City Council","http://opendatacommunities.org/id/metropolitan-district-council/wolverhampton","706868","Rmc Mechanical Services Limited","A23127","27.29","R&M - Departmental planned (external)","130222358","18/07/2018","Maintenance Programme","Centralised R&M","R2001"
"Wolverhampton City Council","http://opendatacommunities.org/id/metropolitan-district-council/wolverhampton","706868","Rmc Mechanical Services Limited","A23127","68.71","R&M - Departmental planned (external)","130222358","18/07/2018","Maintenance Programme","Centralised R&M","R2001"
"Wolverhampton City Council","http://opendatacommunities.org/id/metropolitan-district-council/wolverhampton","706868","Rmc Mechanical Services Limited","A22379","2,805.00","R&M - Departmental planned (external)","130221599","06/07/2018","Schools","The King�s Church of England School","R2001"
"Wolverhampton City Council","http://opendatacommunities.org/id/metropolitan-district-council/wolverhampton","706868","Rmc Mechanical Services Limited","A22430","155.81","R&M - Departmental planned (external)","130221601","06/07/2018","Schools","The King�s Church of England School","R2001"
"Wolverhampton City Council","http://opendatacommunities.org/id/metropolitan-district-council/wolverhampton","706868","Rmc Mechanical Services Limited","A23021","138.50","R&M - Departmental planned (external)","130220662","06/07/2018","Maintenance Programme","Centralised R&M","R2001"
"Wolverhampton City Council","http://opendatacommunities.org/id/metropolitan-district-council/wolverhampton","706868","Rmc Mechanical Services Limited","A23034","55.55","R&M - Departmental planned (external)","130220826","06/07/2018","Maintenance Programme","Centralised R&M","R2001"
"Wolverhampton City Council","http://opendatacommunities.org/id/metropolitan-district-council/wolverhampton","706868","Rmc Mechanical Services Limited","A23029","739.00","R&M - Departmental planned (external)","130220822","06/07/2018","Maintenance Programme","Centralised R&M","R2001"
"Wolverhampton City Council","http://opendatacommunities.org/id/metropolitan-district-council/wolverhampton","706868","Rmc Mechanical Services Limited","A23035","259.37","R&M - Departmental planned (external)","130220827","06/07/2018","Maintenance Programme","Centralised R&M","R2001"
"Wolverhampton City Council","http://opendatacommunities.org/id/metropolitan-district-council/wolverhampton","706868","Rmc Mechanical Services Limited","A23002","917.15","R&M - Departmental planned (external)","130220476","04/07/2018","Facilities Management","Magistrates","R2001"
"Wolverhampton City Council","http://opendatacommunities.org/id/metropolitan-district-council/wolverhampton","706868","Rmc Mechanical Services Limited","A23140","449.11","R&M - Departmental planned (external)","130222542","18/07/2018","Maintenance Programme","Centralised R&M","R2001"
"Wolverhampton City Council","http://opendatacommunities.org/id/metropolitan-district-council/wolverhampton","706868","Rmc Mechanical Services Limited","A22983CR","-398.25","R&M - Departmental planned (external)","130222537","18/07/2018","Maintenance Programme","Centralised R&M","R2001"
"Wolverhampton City Council","http://opendatacommunities.org/id/metropolitan-district-council/wolverhampton","706868","Rmc Mechanical Services Limited","A23126","547.31","R&M - Departmental planned (external)","130222357","18/07/2018","Maintenance Programme","Centralised R&M","R2001"
"Wolverhampton City Council","http://opendatacommunities.org/id/metropolitan-district-council/wolverhampton","706868","Rmc Mechanical Services Limited","A22434","186.08","R&M - Departmental planned (external)","130221602","06/07/2018","Schools","The King�s Church of England School","R2001"
"Wolverhampton City Council","http://opendatacommunities.org/id/metropolitan-district-council/wolverhampton","706868","Rmc Mechanical Services Limited","A22283","1,980.00","R&M - Departmental planned (external)","130214816","06/07/2018","Maintenance Programme","Civic Centre Repairs & Maintenance","R2001"
"Wolverhampton City Council","http://opendatacommunities.org/id/metropolitan-district-council/wolverhampton","706868","Rmc Mechanical Services Limited","A23032","490.80","R&M - Departmental planned (external)","130220824","06/07/2018","Maintenance Programme","Centralised R&M","R2001"
"Wolverhampton City Council","http://opendatacommunities.org/id/metropolitan-district-council/wolverhampton","706868","Rmc Mechanical Services Limited","A23038","55.00","R&M - Departmental planned (external)","130220966","06/07/2018","Maintenance Programme","Centralised R&M","R2001"
"Wolverhampton City Council","http://opendatacommunities.org/id/metropolitan-district-council/wolverhampton","706868","Rmc Mechanical Services Limited","A23043","1,107.96","R&M - Departmental planned (external)","130220970","06/07/2018","Maintenance Programme","Centralised R&M","R2001"
"Wolverhampton City Council","http://opendatacommunities.org/id/metropolitan-district-council/wolverhampton","706868","Rmc Mechanical Services Limited","A23105","65.34","R&M - Departmental planned (external)","130221852","23/07/2018","Markets","Wholesale Market Facilities Management","R2001"
"Wolverhampton City Council","http://opendatacommunities.org/id/metropolitan-district-council/wolverhampton","706868","Rmc Mechanical Services Limited","A23106","2,156.84","Construction and Conversion","130222032","18/07/2018","-","Capital Maintenance - Heating Pipework Upgrades","C1100"
"Wolverhampton City Council","http://opendatacommunities.org/id/metropolitan-district-council/wolverhampton","706868","Rmc Mechanical Services Limited","A23151","197.02","R&M - Departmental planned (external)","130222722","23/07/2018","Maintenance Programme","Centralised R&M","R2001"
"Wolverhampton City Council","http://opendatacommunities.org/id/metropolitan-district-council/wolverhampton","706868","Rmc Mechanical Services Limited","A23138","111.10","R&M - Departmental planned (external)","130223195","25/07/2018","Maintenance Programme","Centralised R&M","R2001"
"Wolverhampton City Council","http://opendatacommunities.org/id/metropolitan-district-council/wolverhampton","706868","Rmc Mechanical Services Limited","A23101","73,996.10","Construction and Conversion","130221848","11/07/2018","-","Boiler / Pipework Replacements","C1100"
"Wolverhampton City Council","http://opendatacommunities.org/id/metropolitan-district-council/wolverhampton","706868","Rmc Mechanical Services Limited","A23104","205.24","R&M - Departmental planned (external)","130221851","11/07/2018","Facilities Management","Bilston Town Hall","R2001"
"Wolverhampton City Council","http://opendatacommunities.org/id/metropolitan-district-council/wolverhampton","706868","Rmc Mechanical Services Limited","A23102","180.64","R&M - Departmental planned (external)","130221849","11/07/2018","Facilities Management","Bilston Town Hall","R2001"
"Wolverhampton City Council","http://opendatacommunities.org/id/metropolitan-district-council/wolverhampton","706868","Rmc Mechanical Services Limited","A22372","79.14","R&M - Departmental planned (external)","130221598","11/07/2018","Schools","The King�s Church of England School","R2001"
"Wolverhampton City Council","http://opendatacommunities.org/id/metropolitan-district-council/wolverhampton","706868","Rmc Mechanical Services Limited","A23159","182.08","R&M - Departmental planned (external)","130223054","25/07/2018","Maintenance Programme","Centralised R&M","R2001"
"Wolverhampton City Council","http://opendatacommunities.org/id/metropolitan-district-council/wolverhampton","706868","Rmc Mechanical Services Limited","A23160","483.67","R&M - Departmental planned (external)","130223055","25/07/2018","Maintenance Programme","Centralised R&M","R2001"
"Wolverhampton City Council","http://opendatacommunities.org/id/metropolitan-district-council/wolverhampton","706868","Rmc Mechanical Services Limited","A23015","187.59","R&M - Departmental planned (external)","130220562","04/07/2018","Learning Disability Provider","City Links","R2001"
"Wolverhampton City Council","http://opendatacommunities.org/id/metropolitan-district-council/wolverhampton","706868","Rmc Mechanical Services Limited","A22321","107.40","R&M - Departmental planned (external)","130222507","13/07/2018","Schools","The King�s Church of England School","R2001"
"Wolverhampton City Council","http://opendatacommunities.org/id/metropolitan-district-council/wolverhampton","706868","Rmc Mechanical Services Limited","A23161","138.37","R&M - Departmental planned (external)","130223056","25/07/2018","Maintenance Programme","Centralised R&M","R2001"
"Wolverhampton City Council","http://opendatacommunities.org/id/metropolitan-district-council/wolverhampton","706868","Rmc Mechanical Services Limited","A23154","878.79","R&M - Departmental planned (external)","130222905","25/07/2018","Maintenance Programme","Centralised R&M","R2001"
"Wolverhampton City Council","http://opendatacommunities.org/id/metropolitan-district-council/wolverhampton","706868","Rmc Mechanical Services Limited","A23135","111.10","R&M - Departmental planned (external)","130223193","25/07/2018","Maintenance Programme","Centralised R&M","R2001"
"Wolverhampton City Council","http://opendatacommunities.org/id/metropolitan-district-council/wolverhampton","706868","Rmc Mechanical Services Limited","A23171","83.33","R&M - Departmental planned (external)","130223200","25/07/2018","Facilities Management","Culwell Street Depot","R2001"
"Wolverhampton City Council","http://opendatacommunities.org/id/metropolitan-district-council/wolverhampton","706868","Rmc Mechanical Services Limited","20476","8,572.22","R&M - Departmental planned (external)","130221179","11/07/2018","Maintenance Programme","Centralised R&M","R2001"
"Wolverhampton City Council","http://opendatacommunities.org/id/metropolitan-district-council/wolverhampton","706868","Rmc Mechanical Services Limited","A23087","1,528.56","R&M - Departmental planned (external)","130221651","11/07/2018","Facilities Management","Magistrates","R2001"
"Wolverhampton City Council","http://opendatacommunities.org/id/metropolitan-district-council/wolverhampton","706868","Rmc Mechanical Services Limited","A23001","354.31","R&M - Departmental planned (external)","130220561","04/07/2018","Facilities Management","Magistrates","R2001"
"Wolverhampton City Council","http://opendatacommunities.org/id/metropolitan-district-council/wolverhampton","706868","Rmc Mechanical Services Limited","A22323","2,277.36","R&M - Departmental response (external)","130222509","13/07/2018","Schools","The King�s Church of England School","R2003"
"Wolverhampton City Council","http://opendatacommunities.org/id/metropolitan-district-council/wolverhampton","706868","Rmc Mechanical Services Limited","A23148","1,246.00","R&M - Departmental planned (external)","130222720","23/07/2018","Maintenance Programme","Civic Centre Repairs & Maintenance","R2001"
"Wolverhampton City Council","http://opendatacommunities.org/id/metropolitan-district-council/wolverhampton","706868","Rmc Mechanical Services Limited","A23129","420.44","R&M - Departmental planned (external)","130222466","18/07/2018","Maintenance Programme","Centralised R&M","R2001"
"Wolverhampton City Council","http://opendatacommunities.org/id/metropolitan-district-council/wolverhampton","706868","Rmc Mechanical Services Limited","A23132","4,128.00","R&M - Departmental planned (external)","130222539","18/07/2018","Maintenance Programme","Centralised R&M","R2001"
"Wolverhampton City Council","http://opendatacommunities.org/id/metropolitan-district-council/wolverhampton","706868","Rmc Mechanical Services Limited","A23139","111.10","R&M - Departmental planned (external)","130222541","18/07/2018","Maintenance Programme","Centralised R&M","R2001"
"Wolverhampton City Council","http://opendatacommunities.org/id/metropolitan-district-council/wolverhampton","706868","Rmc Mechanical Services Limited","A22983","1,432.20","R&M - Departmental planned (external)","130220111","18/07/2018","Maintenance Programme","Centralised R&M","R2001"
"Wolverhampton City Council","http://opendatacommunities.org/id/metropolitan-district-council/wolverhampton","706868","Rmc Mechanical Services Limited","A22429","260.37","R&M - Departmental planned (external)","130221600","06/07/2018","Schools","The King�s Church of England School","R2001"
"Wolverhampton City Council","http://opendatacommunities.org/id/metropolitan-district-council/wolverhampton","706868","Rmc Mechanical Services Limited","A23022","55.55","R&M - Departmental planned (external)","130220663","06/07/2018","Maintenance Programme","Centralised R&M","R2001"
"Wolverhampton City Council","http://opendatacommunities.org/id/metropolitan-district-council/wolverhampton","706868","Rmc Mechanical Services Limited","A23025","764.83","R&M - Departmental planned (external)","130220665","06/07/2018","Maintenance Programme","Centralised R&M","R2001"
"Wolverhampton City Council","http://opendatacommunities.org/id/metropolitan-district-council/wolverhampton","706868","Rmc Mechanical Services Limited","A23042","111.10","R&M - Departmental planned (external)","130220969","06/07/2018","Maintenance Programme","Centralised R&M","R2001"
"Wolverhampton City Council","http://opendatacommunities.org/id/metropolitan-district-council/wolverhampton","706868","Rmc Mechanical Services Limited","A23041","15.62","R&M - Departmental planned (external)","130220968","06/07/2018","Maintenance Programme","Centralised R&M","R2001"
"Wolverhampton City Council","http://opendatacommunities.org/id/metropolitan-district-council/wolverhampton","706868","Rmc Mechanical Services Limited","A23041","17.05","R&M - Departmental planned (external)","130220968","06/07/2018","Maintenance Programme","Centralised R&M","R2001"
"Wolverhampton City Council","http://opendatacommunities.org/id/metropolitan-district-council/wolverhampton","706868","Rmc Mechanical Services Limited","A23039","176.44","R&M - Departmental planned (external)","130220967","06/07/2018","Maintenance Programme","Centralised R&M","R2001"
"Wolverhampton City Council","http://opendatacommunities.org/id/metropolitan-district-council/wolverhampton","706868","Rmc Mechanical Services Limited","A23157","898.59","R&M - Departmental planned (external)","130222908","25/07/2018","Maintenance Programme","Centralised R&M","R2001"
"Wolverhampton City Council","http://opendatacommunities.org/id/metropolitan-district-council/wolverhampton","706868","Rmc Mechanical Services Limited","A23155","425.65","R&M - Departmental planned (external)","130222906","25/07/2018","Maintenance Programme","Centralised R&M","R2001"
"Wolverhampton City Council","http://opendatacommunities.org/id/metropolitan-district-council/wolverhampton","706868","Rmc Mechanical Services Limited","A23158","666.60","R&M - Departmental planned (external)","130222909","25/07/2018","Maintenance Programme","Centralised R&M","R2001"
"Wolverhampton City Council","http://opendatacommunities.org/id/metropolitan-district-council/wolverhampton","706868","Rmc Mechanical Services Limited","A23172","111.10","R&M - Departmental planned (external)","130223332","25/07/2018","Facilities Management","Culwell Street Depot","R2001"
"Wolverhampton City Council","http://opendatacommunities.org/id/metropolitan-district-council/wolverhampton","706868","Rmc Mechanical Services Limited","A23173","169.54","R&M - Departmental planned (external)","130223333","25/07/2018","Facilities Management","Culwell Street Depot","R2001"
"Wolverhampton City Council","http://opendatacommunities.org/id/metropolitan-district-council/wolverhampton","706868","Rmc Mechanical Services Limited","A23030","739.00","R&M - Departmental planned (external)","130221845","11/07/2018","Maintenance Programme","Centralised R&M","R2001"
"Wolverhampton City Council","http://opendatacommunities.org/id/metropolitan-district-council/wolverhampton","706868","Rmc Mechanical Services Limited","A23040","111.10","R&M - Departmental planned (external)","130221846","11/07/2018","Maintenance Programme","Centralised R&M","R2001"
"Wolverhampton City Council","http://opendatacommunities.org/id/metropolitan-district-council/wolverhampton","706868","Rmc Mechanical Services Limited","A23031","98.01","R&M - Departmental planned (external)","130220823","11/07/2018","Maintenance Programme","Centralised R&M","R2001"
"Wolverhampton City Council","http://opendatacommunities.org/id/metropolitan-district-council/wolverhampton","706868","Rmc Mechanical Services Limited","20475","8,612.10","R&M - Departmental planned (external)","130220964","11/07/2018","Maintenance Programme","Centralised R&M","R2001"
"Wolverhampton City Council","http://opendatacommunities.org/id/metropolitan-district-council/wolverhampton","706868","Rmc Mechanical Services Limited","A23020","388.70","R&M - Departmental planned (external)","130220661","04/07/2018","Leisure Services","Central Baths","R2001"
"Wolverhampton City Council","http://opendatacommunities.org/id/metropolitan-district-council/wolverhampton","706868","Rmc Mechanical Services Limited","A23099","927.91","R&M - Departmental planned (external)","130221847","13/07/2018","Maintenance Programme","Centralised R&M","R2001"
"Wolverhampton City Council","http://opendatacommunities.org/id/metropolitan-district-council/wolverhampton","706868","Rmc Mechanical Services Limited","A22995","18,000.00","Construction and Conversion","130220282","04/07/2018","-","Corporate Asset Management","C1100"
"Wolverhampton City Council","http://opendatacommunities.org/id/metropolitan-district-council/wolverhampton","706868","Rmc Mechanical Services Limited","A23027","2,123.45","R&M - Departmental planned (external)","130220667","18/07/2018","Maintenance Programme","Centralised R&M","R2001"
"Wolverhampton City Council","http://opendatacommunities.org/id/metropolitan-district-council/wolverhampton","706868","Rmc Mechanical Services Limited","A23152","307.75","R&M - Departmental planned (external)","130222723","23/07/2018","Maintenance Programme","Centralised R&M","R2001"
"Wolverhampton City Council","http://opendatacommunities.org/id/metropolitan-district-council/wolverhampton","706868","Rmc Mechanical Services Limited","A23147","2,976.00","R&M - Departmental planned (external)","130222719","23/07/2018","Maintenance Programme","Centralised R&M","R2001"
"Wolverhampton City Council","http://opendatacommunities.org/id/metropolitan-district-council/wolverhampton","706868","Rmc Mechanical Services Limited","A23024","111.10","R&M - Departmental planned (external)","130220664","06/07/2018","Maintenance Programme","Centralised R&M","R2001"
"Wolverhampton City Council","http://opendatacommunities.org/id/metropolitan-district-council/wolverhampton","706868","Rmc Mechanical Services Limited","A23016","249.98","R&M - Departmental planned (external)","130220563","06/07/2018","Maintenance Programme","Centralised R&M","R2001"
"Wolverhampton City Council","http://opendatacommunities.org/id/metropolitan-district-council/wolverhampton","706868","Rmc Mechanical Services Limited","A23017","83.33","R&M - Departmental planned (external)","130220564","06/07/2018","Maintenance Programme","Centralised R&M","R2001"
"Wolverhampton City Council","http://opendatacommunities.org/id/metropolitan-district-council/wolverhampton","706868","Rmc Mechanical Services Limited","A23018","32.67","R&M - Departmental planned (external)","130220565","06/07/2018","Maintenance Programme","Centralised R&M","R2001"
"Wolverhampton City Council","http://opendatacommunities.org/id/metropolitan-district-council/wolverhampton","706868","Rmc Mechanical Services Limited","A23033","471.96","R&M - Departmental planned (external)","130220825","06/07/2018","Maintenance Programme","Centralised R&M","R2001"
"Wolverhampton City Council","http://opendatacommunities.org/id/metropolitan-district-council/wolverhampton","706868","Rmc Mechanical Services Limited","A23037","270.27","R&M - Departmental planned (external)","130220965","06/07/2018","Maintenance Programme","Centralised R&M","R2001"
"Wolverhampton City Council","http://opendatacommunities.org/id/metropolitan-district-council/wolverhampton","706868","Rmc Mechanical Services Limited","A23028","918.72","R&M - Departmental planned (external)","130220821","06/07/2018","Maintenance Programme","Centralised R&M","R2001"
"Wolverhampton City Council","http://opendatacommunities.org/id/metropolitan-district-council/wolverhampton","706868","Rmc Mechanical Services Limited","A23026","523.22","R&M - Departmental planned (external)","130220666","18/07/2018","Facilities Management","Magistrates","R2001"
"Wolverhampton City Council","http://opendatacommunities.org/id/metropolitan-district-council/wolverhampton","706868","Rmc Mechanical Services Limited","A23128","111.10","R&M - Departmental planned (external)","130222359","18/07/2018","Maintenance Programme","Centralised R&M","R2001"
"Wolverhampton City Council","http://opendatacommunities.org/id/metropolitan-district-council/wolverhampton","706868","Rmc Mechanical Services Limited","A23131","796.50","R&M - Departmental planned (external)","130222538","18/07/2018","Maintenance Programme","Centralised R&M","R2001"
"Wolverhampton City Council","http://opendatacommunities.org/id/metropolitan-district-council/wolverhampton","706888","Robot Cossey","1","1,948.72","Construction and Conversion","130220421","06/07/2018","-","Parks Strategy and Open Space","C1100"
"Wolverhampton City Council","http://opendatacommunities.org/id/metropolitan-district-council/wolverhampton","706936","Royal Mail Group PLC","9056568824","1,149.60","Comms - Postage","130220740","04/07/2018","Revenues & Benefits","Revenues","R4503"
"Wolverhampton City Council","http://opendatacommunities.org/id/metropolitan-district-council/wolverhampton","706936","Royal Mail Group PLC","9056073579 - CORRECTION","-10.40","Comms - Postage","130220008","04/07/2018","Revenues & Benefits","Revenues","R4503"
"Wolverhampton City Council","http://opendatacommunities.org/id/metropolitan-district-council/wolverhampton","706936","Royal Mail Group PLC","9054955651","1,145.53","Comms - Postage","130221239","11/07/2018","Revenues & Benefits","Revenues","R4503"
"Wolverhampton City Council","http://opendatacommunities.org/id/metropolitan-district-council/wolverhampton","706936","Royal Mail Group PLC","9056914617","134.31","Comms - Postage","190489189","25/07/2018","Public Service Reform","Electoral Registration","R4503"
"Wolverhampton City Council","http://opendatacommunities.org/id/metropolitan-district-council/wolverhampton","706936","Royal Mail Group PLC","9056751756","1,010.40","Comms - Postage","130220283","11/07/2018","ICTS","Document Centre - General","R4503"
"Wolverhampton City Council","http://opendatacommunities.org/id/metropolitan-district-council/wolverhampton","706936","Royal Mail Group PLC","9056073579 - CREDIT","-10.40","Comms - Postage","130220007","04/07/2018","Revenues & Benefits","Revenues","R4503"
"Wolverhampton City Council","http://opendatacommunities.org/id/metropolitan-district-council/wolverhampton","706936","Royal Mail Group PLC","9056685645","4.98","Comms - Postage","130219253","04/07/2018","Revenues & Benefits","Revenues","R4503"
"Wolverhampton City Council","http://opendatacommunities.org/id/metropolitan-district-council/wolverhampton","706936","Royal Mail Group PLC","9056734655","10.85","Comms - Postage","130220742","06/07/2018","Revenues & Benefits","Revenues","R4503"
"Wolverhampton City Council","http://opendatacommunities.org/id/metropolitan-district-council/wolverhampton","706936","Royal Mail Group PLC","9056650341","1,435.22","Comms - Postage","130221237","11/07/2018","Revenues & Benefits","Revenues","R4503"
"Wolverhampton City Council","http://opendatacommunities.org/id/metropolitan-district-council/wolverhampton","706936","Royal Mail Group PLC","9056920385","11.46","Comms - Postage","190489188","25/07/2018","Public Service Reform","Local Government Elections","R4503"
"Wolverhampton City Council","http://opendatacommunities.org/id/metropolitan-district-council/wolverhampton","706936","Royal Mail Group PLC","9054915338","1,576.20","Comms - Postage","130221236","11/07/2018","Revenues & Benefits","Revenues","R4503"
"Wolverhampton City Council","http://opendatacommunities.org/id/metropolitan-district-council/wolverhampton","706936","Royal Mail Group PLC","9055757460 - CORRECTION","-939.06","Comms - Postage","130220010","04/07/2018","Revenues & Benefits","Revenues","R4503"
"Wolverhampton City Council","http://opendatacommunities.org/id/metropolitan-district-council/wolverhampton","706936","Royal Mail Group PLC","9056478575","0.51","Comms - Postage","130216244","04/07/2018","Revenues & Benefits","Revenues","R4503"
"Wolverhampton City Council","http://opendatacommunities.org/id/metropolitan-district-council/wolverhampton","706936","Royal Mail Group PLC","9056610625","1,161.84","Comms - Postage","130220741","04/07/2018","Revenues & Benefits","Revenues","R4503"
"Wolverhampton City Council","http://opendatacommunities.org/id/metropolitan-district-council/wolverhampton","706936","Royal Mail Group PLC","9055757460 - CREDIT","-939.06","Comms - Postage","130220009","04/07/2018","Revenues & Benefits","Revenues","R4503"
"Wolverhampton City Council","http://opendatacommunities.org/id/metropolitan-district-council/wolverhampton","706936","Royal Mail Group PLC","9056719096","1,688.11","Comms - Postage","130219657","04/07/2018","ICTS","Document Centre - General","R4503"
"Wolverhampton City Council","http://opendatacommunities.org/id/metropolitan-district-council/wolverhampton","706936","Royal Mail Group PLC","9056484116","1,209.21","Comms - Postage","130216245","04/07/2018","Revenues & Benefits","Revenues","R4503"
"Wolverhampton City Council","http://opendatacommunities.org/id/metropolitan-district-council/wolverhampton","706936","Royal Mail Group PLC","9056524544","27.83","Comms - Postage","130221238","11/07/2018","Revenues & Benefits","Revenues","R4503"
"Wolverhampton City Council","http://opendatacommunities.org/id/metropolitan-district-council/wolverhampton","706936","Royal Mail Group PLC","9056843201","1,102.25","Comms - Postage","130221180","25/07/2018","ICTS","Document Centre - General","R4503"
"Wolverhampton City Council","http://opendatacommunities.org/id/metropolitan-district-council/wolverhampton","706936","Royal Mail Group PLC","9056843201","-1,102.25","Comms - Postage","130221180","25/07/2018","ICTS","Document Centre - General","R4503"
"Wolverhampton City Council","http://opendatacommunities.org/id/metropolitan-district-council/wolverhampton","706936","Royal Mail Group PLC","9056843201","1,136.36","Comms - Postage","130221180","25/07/2018","ICTS","Document Centre - General","R4503"
"Wolverhampton City Council","http://opendatacommunities.org/id/metropolitan-district-council/wolverhampton","706942","Royal Society For Public Health-Rsph","INV016322","252.00","Training Expenses","130218773","04/07/2018","Adult Education","Work Related Studies","R1650"
"Wolverhampton City Council","http://opendatacommunities.org/id/metropolitan-district-council/wolverhampton","706942","Royal Society For Public Health-Rsph","INV016322","33.40","Training Expenses","130218773","04/07/2018","Adult Education","Work Related Studies","R1650"
"Wolverhampton City Council","http://opendatacommunities.org/id/metropolitan-district-council/wolverhampton","706987","S B Waste Management & Recycling Limited","113962","322.00","TPP - Waste Disposal","130222729","25/07/2018","Highways Maintenance","Patching","R5003"
"Wolverhampton City Council","http://opendatacommunities.org/id/metropolitan-district-council/wolverhampton","706987","S B Waste Management & Recycling Limited","113964","225.00","Waste Management","130222730","25/07/2018","Leisure Services","Aldersley Leisure Village","R2703"
"Wolverhampton City Council","http://opendatacommunities.org/id/metropolitan-district-council/wolverhampton","706987","S B Waste Management & Recycling Limited","113965","1,162.60","TPP - Waste Disposal","130222731","25/07/2018","Independent Living Service","Independent Living Service","R5003"
"Wolverhampton City Council","http://opendatacommunities.org/id/metropolitan-district-council/wolverhampton","706987","S B Waste Management & Recycling Limited","112915","765.50","TPP - Waste Disposal","130218283","04/07/2018","Independent Living Service","Independent Living Service","R5003"
"Wolverhampton City Council","http://opendatacommunities.org/id/metropolitan-district-council/wolverhampton","706987","S B Waste Management & Recycling Limited","113961","2,428.58","TPP - Waste Disposal","130222728","25/07/2018","Highways Maintenance","Patching","R5003"
"Wolverhampton City Council","http://opendatacommunities.org/id/metropolitan-district-council/wolverhampton","707023","S. & J. Pritchard Landscapes Limited","243","185.00","R&M - Departmental response (external)","130221489","11/07/2018","Environmental Maintenance","Parks - East Area Management","R2003"
"Wolverhampton City Council","http://opendatacommunities.org/id/metropolitan-district-council/wolverhampton","707023","S. & J. Pritchard Landscapes Limited","247","85.00","R&M - Departmental response (external)","130221854","13/07/2018","Environmental Maintenance","Parks - East Area Management","R2003"
"Wolverhampton City Council","http://opendatacommunities.org/id/metropolitan-district-council/wolverhampton","707023","S. & J. Pritchard Landscapes Limited","242","320.00","R&M - Departmental response (external)","130220672","04/07/2018","Environmental Maintenance","Parks - South West Area Management","R2003"
"Wolverhampton City Council","http://opendatacommunities.org/id/metropolitan-district-council/wolverhampton","707023","S. & J. Pritchard Landscapes Limited","239","520.00","R&M - Departmental response (external)","130220669","04/07/2018","Environmental Maintenance","Parks - East Area Management","R2003"
"Wolverhampton City Council","http://opendatacommunities.org/id/metropolitan-district-council/wolverhampton","707023","S. & J. Pritchard Landscapes Limited","240","1,950.00","Grounds Maintenance - Contract","130220670","11/07/2018","Bereavement Services","Cemeteries","R2075"
"Wolverhampton City Council","http://opendatacommunities.org/id/metropolitan-district-council/wolverhampton","707023","S. & J. Pritchard Landscapes Limited","246","975.00","R&M - Departmental response (external)","130221853","13/07/2018","Environmental Maintenance","Parks - East Area Management","R2003"
"Wolverhampton City Council","http://opendatacommunities.org/id/metropolitan-district-council/wolverhampton","707023","S. & J. Pritchard Landscapes Limited","249","65.00","R&M - Departmental response (external)","130223057","25/07/2018","Environmental Maintenance","Parks - South West Area Management","R2003"
"Wolverhampton City Council","http://opendatacommunities.org/id/metropolitan-district-council/wolverhampton","707023","S. & J. Pritchard Landscapes Limited","244","85.00","R&M - Departmental response (external)","130221490","11/07/2018","Environmental Maintenance","Parks - East Area Management","R2003"
"Wolverhampton City Council","http://opendatacommunities.org/id/metropolitan-district-council/wolverhampton","707023","S. & J. Pritchard Landscapes Limited","248","480.00","Grounds Maintenance - Contract","130221855","13/07/2018","Environmental Maintenance","Ground Maintenance East","R2075"
"Wolverhampton City Council","http://opendatacommunities.org/id/metropolitan-district-council/wolverhampton","707023","S. & J. Pritchard Landscapes Limited","241","185.00","R&M - Departmental response (external)","130220671","04/07/2018","Environmental Maintenance","Parks - South West Area Management","R2003"
"Wolverhampton City Council","http://opendatacommunities.org/id/metropolitan-district-council/wolverhampton","707023","S. & J. Pritchard Landscapes Limited","245","65.00","R&M - Departmental response (external)","130221491","11/07/2018","Environmental Maintenance","Parks - South West Area Management","R2003"
"Wolverhampton City Council","http://opendatacommunities.org/id/metropolitan-district-council/wolverhampton","707023","S. & J. Pritchard Landscapes Limited","250","1,150.00","Grounds Maintenance - Contract","130223058","25/07/2018","Bereavement Services","Cemeteries","R2075"
"Wolverhampton City Council","http://opendatacommunities.org/id/metropolitan-district-council/wolverhampton","707023","S. & J. Pritchard Landscapes Limited","238","3,675.59","Grounds Maintenance - Contract","130220668","04/07/2018","Environmental Maintenance","Ground Maintenance East","R2075"
"Wolverhampton City Council","http://opendatacommunities.org/id/metropolitan-district-council/wolverhampton","707035","S.S. Sidhu","0472","171.61","Books","130220674","18/07/2018","Local Economy","Reference Library","R4309"
"Wolverhampton City Council","http://opendatacommunities.org/id/metropolitan-district-council/wolverhampton","707035","S.S. Sidhu","0471","169.34","Books","130220673","25/07/2018","Local Economy","Reference Library","R4309"
"Wolverhampton City Council","http://opendatacommunities.org/id/metropolitan-district-council/wolverhampton","707035","S.S. Sidhu","0470","171.60","Books","130219925","04/07/2018","Local Economy","Reference Library","R4309"
"Wolverhampton City Council","http://opendatacommunities.org/id/metropolitan-district-council/wolverhampton","707037","S.T.Churchware","2018297","90.60","R&M - Departmental planned (external)","130223334","25/07/2018","Bereavement Services","Crematorium","R2001"
"Wolverhampton City Council","http://opendatacommunities.org/id/metropolitan-district-council/wolverhampton","707077","Sanctuary Personnel Limited","INV00260095","1,813.00","Agency Staff","130221858","11/07/2018","Child Protection","CIN/CP Social Work Unit - Area 8","R1100"
"Wolverhampton City Council","http://opendatacommunities.org/id/metropolitan-district-council/wolverhampton","707077","Sanctuary Personnel Limited","INV00260091","612.50","Agency Staff","130221857","11/07/2018","Child Protection","CIN/CP Social Work Unit - Area 8","R1100"
"Wolverhampton City Council","http://opendatacommunities.org/id/metropolitan-district-council/wolverhampton","707085","Sandwell Mbc","255001790","9,394.00","TPP - Payments to Local Authorities","130222732","18/07/2018","Special Educational Needs","SEN Education OOC","R5100"
"Wolverhampton City Council","http://opendatacommunities.org/id/metropolitan-district-council/wolverhampton","707085","Sandwell Mbc","210035055","1,759.00","Construction and Conversion","130219047","04/07/2018","-","Bilston Urban Village","C1100"
"Wolverhampton City Council","http://opendatacommunities.org/id/metropolitan-district-council/wolverhampton","707097","Sarabec Limited","215755","1,244.85","Equipment - Purchase","130219781","13/07/2018","Independent Living Service","Independent Living Service","R4000"
"Wolverhampton City Council","http://opendatacommunities.org/id/metropolitan-district-council/wolverhampton","707121","Schneider Electric Limited","98232651","556.93","R&M - Departmental planned (internal)","130222033","23/07/2018","Maintenance Programme","Civic Centre Repairs & Maintenance","R2000"
"Wolverhampton City Council","http://opendatacommunities.org/id/metropolitan-district-council/wolverhampton","707121","Schneider Electric Limited","98215942","1,412.50","R&M - Departmental planned (internal)","130220284","11/07/2018","Maintenance Programme","Civic Centre Repairs & Maintenance","R2000"
"Wolverhampton City Council","http://opendatacommunities.org/id/metropolitan-district-council/wolverhampton","707131","School Merit Stickers","259217","85.00","Equipment - Purchase","130221604","06/07/2018","Schools","The King�s Church of England School","R4000"
"Wolverhampton City Council","http://opendatacommunities.org/id/metropolitan-district-council/wolverhampton","707162","Scottish Power PLC","612001621519","87.76","Electricity","190487300","23/07/2018","Corporate Asset Management","Central Utilities to Recharge","R2100"
"Wolverhampton City Council","http://opendatacommunities.org/id/metropolitan-district-council/wolverhampton","707162","Scottish Power PLC","606001768849","90.18","Electricity","190487301","23/07/2018","Corporate Asset Management","Central Utilities to Recharge","R2100"
"Wolverhampton City Council","http://opendatacommunities.org/id/metropolitan-district-council/wolverhampton","707164","Scribes Plus Limited","9922","390.00","Materials","130221384","27/07/2018","Bereavement Services","Crematorium","R4007"
"Wolverhampton City Council","http://opendatacommunities.org/id/metropolitan-district-council/wolverhampton","707164","Scribes Plus Limited","9898","190.00","Services - Professional Fees","130218774","04/07/2018","Public Service Reform","Mayoral Expenses","R4400"
"Wolverhampton City Council","http://opendatacommunities.org/id/metropolitan-district-council/wolverhampton","707164","Scribes Plus Limited","9901","204.00","Materials","130220675","18/07/2018","Bereavement Services","Crematorium","R4007"
"Wolverhampton City Council","http://opendatacommunities.org/id/metropolitan-district-council/wolverhampton","707164","Scribes Plus Limited","9863","568.30","Books","130220117","18/07/2018","Bereavement Services","Crematorium","R4309"
"Wolverhampton City Council","http://opendatacommunities.org/id/metropolitan-district-council/wolverhampton","707185","Security Plus Limited","679870","218.40","Services - Security","130219423","23/07/2018","Parking Services","On Street Parking","R4405"
"Wolverhampton City Council","http://opendatacommunities.org/id/metropolitan-district-council/wolverhampton","707185","Security Plus Limited","679870","655.19","Services - Security","130219423","23/07/2018","Parking Services","Car Parks Operational Staff","R4405"
"Wolverhampton City Council","http://opendatacommunities.org/id/metropolitan-district-council/wolverhampton","707185","Security Plus Limited","682515","3,118.78","Services - Security","130221181","27/07/2018","The Hub","Cash in Transit (Operational Finance)","R4405"
"Wolverhampton City Council","http://opendatacommunities.org/id/metropolitan-district-council/wolverhampton","707185","Security Plus Limited","683013","12.10","Services - Security","130222361","25/07/2018","The Hub","Cash in Transit (Operational Finance)","R4405"
"Wolverhampton City Council","http://opendatacommunities.org/id/metropolitan-district-council/wolverhampton","707185","Security Plus Limited","682517","25.00","Services - Security","130221183","27/07/2018","The Hub","Banking","R4405"
"Wolverhampton City Council","http://opendatacommunities.org/id/metropolitan-district-council/wolverhampton","707185","Security Plus Limited","685349","18.92","Services - Security","130223063","25/07/2018","Visitor Economy","Bantock - Tea Rooms","R4405"
"Wolverhampton City Council","http://opendatacommunities.org/id/metropolitan-district-council/wolverhampton","707185","Security Plus Limited","682516","1,754.50","Services - Security","130221182","27/07/2018","The Hub","Cash in Transit (Operational Finance)","R4405"
"Wolverhampton City Council","http://opendatacommunities.org/id/metropolitan-district-council/wolverhampton","707185","Security Plus Limited","685348","18.92","Services - Security","130223062","25/07/2018","Leisure Services","Bert Williams Leisure Centre","R4405"
"Wolverhampton City Council","http://opendatacommunities.org/id/metropolitan-district-council/wolverhampton","707189","Sedgley Glass Limited","15091","120.00","R&M - Departmental response (external)","130221605","06/07/2018","Schools","The King�s Church of England School","R2003"
"Wolverhampton City Council","http://opendatacommunities.org/id/metropolitan-district-council/wolverhampton","707191","Seesaws Day Nursery","19298","496.00","TPP - Child Care provided for client","130219549","04/07/2018","Adult Education","Discretionary Fund","R5034"
"Wolverhampton City Council","http://opendatacommunities.org/id/metropolitan-district-council/wolverhampton","707191","Seesaws Day Nursery","EYPP Summer 2018 Penn","190.80","TPP - Private Nursery Education Funding","190489850","25/07/2018","Early Years","Early Years Pupil Premium","R5035"
"Wolverhampton City Council","http://opendatacommunities.org/id/metropolitan-district-council/wolverhampton","707191","Seesaws Day Nursery","TFT Summer 2018 Inst 2 Penn","6,602.40","TPP - Private Nursery Education Funding","190489842","25/07/2018","Early Years","Early Years Entitlement Funding for Disadvantaged 2 Year Olds","R5035"
"Wolverhampton City Council","http://opendatacommunities.org/id/metropolitan-district-council/wolverhampton","707191","Seesaws Day Nursery","EYPP Summer 2018 Merridale","572.40","TPP - Private Nursery Education Funding","190489849","25/07/2018","Early Years","Early Years Pupil Premium","R5035"
"Wolverhampton City Council","http://opendatacommunities.org/id/metropolitan-district-council/wolverhampton","707191","Seesaws Day Nursery","NEF Summer 2018 INST 2 Penn","16,371.00","TPP - Private Nursery Education Funding","190489831","25/07/2018","Early Years","Early Years Universal Entitlement for 3 and 4 Year Olds","R5035"
"Wolverhampton City Council","http://opendatacommunities.org/id/metropolitan-district-council/wolverhampton","707191","Seesaws Day Nursery","NEF Summer 2018 INST 2 Merridale","14,624.25","TPP - Private Nursery Education Funding","190489832","25/07/2018","Early Years","Early Years Universal Entitlement for 3 and 4 Year Olds","R5035"
"Wolverhampton City Council","http://opendatacommunities.org/id/metropolitan-district-council/wolverhampton","707191","Seesaws Day Nursery","TFT Summer 2018 Inst 2 Merridale","3,301.20","TPP - Private Nursery Education Funding","190489843","25/07/2018","Early Years","Early Years Entitlement Funding for Disadvantaged 2 Year Olds","R5035"
"Wolverhampton City Council","http://opendatacommunities.org/id/metropolitan-district-council/wolverhampton","707195","Select & Save Wolverhampton Limited","WANEWS050","96.10","Books","130223760","27/07/2018","Local Economy","Warstones Library","R4309"
"Wolverhampton City Council","http://opendatacommunities.org/id/metropolitan-district-council/wolverhampton","707195","Select & Save Wolverhampton Limited","WANEWS049","88.10","Books","130223759","27/07/2018","Local Economy","Warstones Library","R4309"
"Wolverhampton City Council","http://opendatacommunities.org/id/metropolitan-district-council/wolverhampton","707195","Select & Save Wolverhampton Limited","WANEWS051","96.10","Books","130223761","27/07/2018","Local Economy","Warstones Library","R4309"
"Wolverhampton City Council","http://opendatacommunities.org/id/metropolitan-district-council/wolverhampton","707197","Select Forms Limited","30157","5,232.00","Services - Bank Charges","130221385","23/07/2018","Central Corporate Budgets","Corporate Management (Bank Charges)","R4403"
"Wolverhampton City Council","http://opendatacommunities.org/id/metropolitan-district-council/wolverhampton","707213","Sellick Partnership Group Limited","INV234491","1,749.00","Agency Staff","130221386","11/07/2018","Legal Services","Legal Services","R1100"
"Wolverhampton City Council","http://opendatacommunities.org/id/metropolitan-district-council/wolverhampton","707213","Sellick Partnership Group Limited","INV236450","608.38","Agency Staff","130223066","25/07/2018","Legal Services","Legal Services","R1100"
"Wolverhampton City Council","http://opendatacommunities.org/id/metropolitan-district-council/wolverhampton","707213","Sellick Partnership Group Limited","INV236449","418.00","Agency Staff","130223065","25/07/2018","Legal Services","Legal Services","R1100"
"Wolverhampton City Council","http://opendatacommunities.org/id/metropolitan-district-council/wolverhampton","707213","Sellick Partnership Group Limited","INV234055","1,661.00","Agency Staff","130220566","04/07/2018","Legal Services","Legal Services","R1100"
"Wolverhampton City Council","http://opendatacommunities.org/id/metropolitan-district-council/wolverhampton","707213","Sellick Partnership Group Limited","INV236453","677.92","Agency Staff","130222912","25/07/2018","Legal Services","Legal Services","R1100"
"Wolverhampton City Council","http://opendatacommunities.org/id/metropolitan-district-council/wolverhampton","707213","Sellick Partnership Group Limited","INV236454","487.54","Agency Staff","130222913","25/07/2018","Legal Services","Legal Services","R1100"
"Wolverhampton City Council","http://opendatacommunities.org/id/metropolitan-district-council/wolverhampton","707213","Sellick Partnership Group Limited","INV232920","1,672.00","Agency Staff","130219782","04/07/2018","Legal Services","Legal Services","R1100"
"Wolverhampton City Council","http://opendatacommunities.org/id/metropolitan-district-council/wolverhampton","707213","Sellick Partnership Group Limited","INV236451","424.46","Agency Staff","130223067","25/07/2018","Legal Services","Legal Services","R1100"
"Wolverhampton City Council","http://opendatacommunities.org/id/metropolitan-district-council/wolverhampton","707228","Senwod Contracting Limited","SI-15578","600.00","Hire of Plant","130220676","11/07/2018","Environmental Maintenance","Ground Maintenance East","R3201"
"Wolverhampton City Council","http://opendatacommunities.org/id/metropolitan-district-council/wolverhampton","707228","Senwod Contracting Limited","SI-15578","250.00","Hire of Plant","130220676","11/07/2018","Environmental Maintenance","Ground Maintenance East","R3201"
"Wolverhampton City Council","http://opendatacommunities.org/id/metropolitan-district-council/wolverhampton","707228","Senwod Contracting Limited","SI-15578","200.00","Hire of Plant","130220676","11/07/2018","Environmental Maintenance","Ground Maintenance East","R3201"
"Wolverhampton City Council","http://opendatacommunities.org/id/metropolitan-district-council/wolverhampton","707228","Senwod Contracting Limited","SI-15584","900.00","Materials","130221859","13/07/2018","Bereavement Services","Bereavement services - Grounds maintenance","R4007"
"Wolverhampton City Council","http://opendatacommunities.org/id/metropolitan-district-council/wolverhampton","707228","Senwod Contracting Limited","SI-15584","200.00","Materials","130221859","13/07/2018","Bereavement Services","Bereavement services - Grounds maintenance","R4007"
"Wolverhampton City Council","http://opendatacommunities.org/id/metropolitan-district-council/wolverhampton","707234","Services4Schools Ltd","7029","325.00","Support Service Recharge - Services to Schools","130221611","06/07/2018","Schools","The King�s Church of England School","R7030"
"Wolverhampton City Council","http://opendatacommunities.org/id/metropolitan-district-council/wolverhampton","707247","Severn Trent Water Limited","569146302 327002017 RV","521.52","Water Charges","190475592","04/07/2018","Corporate Asset Management","Central Utilities to Recharge","R2400"
"Wolverhampton City Council","http://opendatacommunities.org/id/metropolitan-district-council/wolverhampton","707247","Severn Trent Water Limited","569146302 622002006 RV","448.52","Water Charges","190475589","04/07/2018","Schools","Hill Avenue Primary School","R2400"
"Wolverhampton City Council","http://opendatacommunities.org/id/metropolitan-district-council/wolverhampton","707247","Severn Trent Water Limited","569146302 373002012 RV","411.82","Water Charges","190475591","04/07/2018","Schools","Wodensfield Primary School","R2400"
"Wolverhampton City Council","http://opendatacommunities.org/id/metropolitan-district-council/wolverhampton","707247","Severn Trent Water Limited","5330120925 198041946","309.71","Water Charges","190475594","04/07/2018","Corporate Asset Management","Central Utilities to Recharge","R2400"
"Wolverhampton City Council","http://opendatacommunities.org/id/metropolitan-district-council/wolverhampton","707247","Severn Trent Water Limited","5330120925C 198030865","-64.86","Water Charges","190475599","04/07/2018","Corporate Asset Management","Central Utilities to Recharge","R2400"
"Wolverhampton City Council","http://opendatacommunities.org/id/metropolitan-district-council/wolverhampton","707247","Severn Trent Water Limited","5330120925 547062124","1,672.30","Water Charges","190475596","04/07/2018","Corporate Asset Management","Central Utilities to Recharge","R2400"
"Wolverhampton City Council","http://opendatacommunities.org/id/metropolitan-district-council/wolverhampton","707247","Severn Trent Water Limited","5330120925C 198041946","-224.27","Water Charges","190475600","04/07/2018","Corporate Asset Management","Central Utilities to Recharge","R2400"
"Wolverhampton City Council","http://opendatacommunities.org/id/metropolitan-district-council/wolverhampton","707247","Severn Trent Water Limited","5330120925 547083339","2,228.31","Water Charges","190475597","04/07/2018","Corporate Asset Management","Central Utilities to Recharge","R2400"
"Wolverhampton City Council","http://opendatacommunities.org/id/metropolitan-district-council/wolverhampton","707247","Severn Trent Water Limited","5330120925 831084074","228.71","Water Charges","190475593","04/07/2018","Housing Revenue Account","Hostels / Outreach","R2400"
"Wolverhampton City Council","http://opendatacommunities.org/id/metropolitan-district-council/wolverhampton","707247","Severn Trent Water Limited","5330120925 547022466","1,715.04","Water Charges","190475595","04/07/2018","Corporate Asset Management","Central Utilities to Recharge","R2400"
"Wolverhampton City Council","http://opendatacommunities.org/id/metropolitan-district-council/wolverhampton","707247","Severn Trent Water Limited","5330120925 198030865","64.86","Water Charges","190475598","04/07/2018","Corporate Asset Management","Central Utilities to Recharge","R2400"
"Wolverhampton City Council","http://opendatacommunities.org/id/metropolitan-district-council/wolverhampton","707247","Severn Trent Water Limited","569146302 148208911 RV","356.79","Water Charges","190475590","04/07/2018","Schools","Warstones Primary School","R2400"
"Wolverhampton City Council","http://opendatacommunities.org/id/metropolitan-district-council/wolverhampton","707249","Severn Valley Window & Door Limited","24484","3,534.00","R&M - Departmental planned (external)","130221387","06/07/2018","Maintenance Programme","Civic Centre Repairs & Maintenance","R2001"
"Wolverhampton City Council","http://opendatacommunities.org/id/metropolitan-district-council/wolverhampton","707288","Shine Fostering","P177826 22071820180702","3,600.00","TPP - Placement Foster Care Agency","190475326","04/07/2018","Looked After Children","Out of City Placements","R5602"
"Wolverhampton City Council","http://opendatacommunities.org/id/metropolitan-district-council/wolverhampton","707288","Shine Fostering","P177826 22071820180702","3,600.00","TPP - Placement Foster Care Agency","190475326","04/07/2018","Looked After Children","Out of City Placements","R5602"
"Wolverhampton City Council","http://opendatacommunities.org/id/metropolitan-district-council/wolverhampton","707310","Sight & Sound Technology Limited","SINV-115761","373.00","Equipment - Purchase","130218584","04/07/2018","Strategic Commissioning","Head of Strategic Commissioning","R4000"
"Wolverhampton City Council","http://opendatacommunities.org/id/metropolitan-district-council/wolverhampton","707310","Sight & Sound Technology Limited","SINV-115761","223.00","Equipment - Purchase","130218584","04/07/2018","Strategic Commissioning","Head of Strategic Commissioning","R4000"
"Wolverhampton City Council","http://opendatacommunities.org/id/metropolitan-district-council/wolverhampton","707310","Sight & Sound Technology Limited","SINV-115761","55.00","Equipment - Purchase","130218584","04/07/2018","Strategic Commissioning","Head of Strategic Commissioning","R4000"
"Wolverhampton City Council","http://opendatacommunities.org/id/metropolitan-district-council/wolverhampton","707310","Sight & Sound Technology Limited","SINV-115761","629.10","Equipment - Purchase","130218584","04/07/2018","Strategic Commissioning","Head of Strategic Commissioning","R4000"
"Wolverhampton City Council","http://opendatacommunities.org/id/metropolitan-district-council/wolverhampton","707310","Sight & Sound Technology Limited","SINV-115761","25.00","Equipment - Purchase","130218584","04/07/2018","Strategic Commissioning","Head of Strategic Commissioning","R4000"
"Wolverhampton City Council","http://opendatacommunities.org/id/metropolitan-district-council/wolverhampton","707313","Signature","SI00200072","35.00","Exam Expenses (Non-Employee)","130218607","06/07/2018","Adult Education","Language Studies Delivery Area","R4630"
"Wolverhampton City Council","http://opendatacommunities.org/id/metropolitan-district-council/wolverhampton","707313","Signature","SI00199019","140.00","Exam Expenses (Non-Employee)","130218593","06/07/2018","Adult Education","Language Studies Delivery Area","R4630"
"Wolverhampton City Council","http://opendatacommunities.org/id/metropolitan-district-council/wolverhampton","707313","Signature","SI00198567","50.00","Exam Expenses (Non-Employee)","130218587","06/07/2018","Adult Education","Language Studies Delivery Area","R4630"
"Wolverhampton City Council","http://opendatacommunities.org/id/metropolitan-district-council/wolverhampton","707313","Signature","SI00199159","212.00","Exam Expenses (Non-Employee)","130218594","06/07/2018","Adult Education","Language Studies Delivery Area","R4630"
"Wolverhampton City Council","http://opendatacommunities.org/id/metropolitan-district-council/wolverhampton","707313","Signature","SI00198565","150.00","Exam Expenses (Non-Employee)","130218585","06/07/2018","Adult Education","Language Studies Delivery Area","R4630"
"Wolverhampton City Council","http://opendatacommunities.org/id/metropolitan-district-council/wolverhampton","707313","Signature","SI00199018","50.00","Exam Expenses (Non-Employee)","130218592","06/07/2018","Adult Education","Language Studies Delivery Area","R4630"
"Wolverhampton City Council","http://opendatacommunities.org/id/metropolitan-district-council/wolverhampton","707313","Signature","SI00199215","245.00","Exam Expenses (Non-Employee)","130218595","06/07/2018","Adult Education","Language Studies Delivery Area","R4630"
"Wolverhampton City Council","http://opendatacommunities.org/id/metropolitan-district-council/wolverhampton","707313","Signature","SI00200073","35.00","Exam Expenses (Non-Employee)","130218945","06/07/2018","Adult Education","Language Studies Delivery Area","R4630"
"Wolverhampton City Council","http://opendatacommunities.org/id/metropolitan-district-council/wolverhampton","707313","Signature","SI00199728","150.00","Exam Expenses (Non-Employee)","130218601","06/07/2018","Adult Education","Language Studies Delivery Area","R4630"
"Wolverhampton City Council","http://opendatacommunities.org/id/metropolitan-district-council/wolverhampton","707313","Signature","SI00199613","100.00","Exam Expenses (Non-Employee)","130218599","06/07/2018","Adult Education","Language Studies Delivery Area","R4630"
"Wolverhampton City Council","http://opendatacommunities.org/id/metropolitan-district-council/wolverhampton","707313","Signature","SI00199614","50.00","Exam Expenses (Non-Employee)","130218600","06/07/2018","Adult Education","Language Studies Delivery Area","R4630"
"Wolverhampton City Council","http://opendatacommunities.org/id/metropolitan-district-council/wolverhampton","707313","Signature","SI00198566","60.00","Exam Expenses (Non-Employee)","130218586","06/07/2018","Adult Education","Language Studies Delivery Area","R4630"
"Wolverhampton City Council","http://opendatacommunities.org/id/metropolitan-district-council/wolverhampton","707313","Signature","SI00200071","48.00","Exam Expenses (Non-Employee)","130218606","06/07/2018","Adult Education","Language Studies Delivery Area","R4630"
"Wolverhampton City Council","http://opendatacommunities.org/id/metropolitan-district-council/wolverhampton","707313","Signature","SI00199525","96.00","Exam Expenses (Non-Employee)","130218598","06/07/2018","Adult Education","Language Studies Delivery Area","R4630"
"Wolverhampton City Council","http://opendatacommunities.org/id/metropolitan-district-council/wolverhampton","707313","Signature","SI00199216","35.00","Exam Expenses (Non-Employee)","130218596","06/07/2018","Adult Education","Language Studies Delivery Area","R4630"
"Wolverhampton City Council","http://opendatacommunities.org/id/metropolitan-district-council/wolverhampton","707313","Signature","SI00198849","20.00","Exam Expenses (Non-Employee)","130218590","06/07/2018","Adult Education","Language Studies Delivery Area","R4630"
"Wolverhampton City Council","http://opendatacommunities.org/id/metropolitan-district-council/wolverhampton","707321","Signs Now UK","INV/270/9682","2,369.21","Services - Professional Fees","130221388","06/07/2018","Early Intervention","EIP Locality 1 - Eastfields","R4400"
"Wolverhampton City Council","http://opendatacommunities.org/id/metropolitan-district-council/wolverhampton","707344","Sing Up","H/4120/SU132","1,950.00","Services - Professional Fees","130221860","25/07/2018","School Planning & Resources","Music Support Team","R4400"
"Wolverhampton City Council","http://opendatacommunities.org/id/metropolitan-district-council/wolverhampton","707356","SJ Cleaning (Midlands) Limited","WCC1819/02","6,816.80","Window Cleaning","130221493","11/07/2018","Facilities Management","Civic Centre","R2701"
"Wolverhampton City Council","http://opendatacommunities.org/id/metropolitan-district-council/wolverhampton","707356","SJ Cleaning (Midlands) Limited","WCC1819/01","4,057.75","Window Cleaning","130221492","06/07/2018","Facilities Management","Civic Centre","R2701"
"Wolverhampton City Council","http://opendatacommunities.org/id/metropolitan-district-council/wolverhampton","707385","Smestow School Spec. Sports College","SEN Resource Base Summer Term 2018 - Smestow Academy","3,579.23","Grant Payments","190484260","13/07/2018","Central Education","Special Schools Top Up Contingency","R4700"
"Wolverhampton City Council","http://opendatacommunities.org/id/metropolitan-district-council/wolverhampton","707388","Smith Bros(Caer Conan)Wholesale Limited","566692","68.04","Materials","130223068","25/07/2018","Street Lighting","Signs Illuminated","R4007"
"Wolverhampton City Council","http://opendatacommunities.org/id/metropolitan-district-council/wolverhampton","707388","Smith Bros(Caer Conan)Wholesale Limited","565975","15.96","Materials","130222195","25/07/2018","Street Lighting","Signs Illuminated","R4007"
"Wolverhampton City Council","http://opendatacommunities.org/id/metropolitan-district-council/wolverhampton","707388","Smith Bros(Caer Conan)Wholesale Limited","565780","6,761.04","Materials","130222194","13/07/2018","Street Lighting","Street Lighting Maintenance","R4007"
"Wolverhampton City Council","http://opendatacommunities.org/id/metropolitan-district-council/wolverhampton","707388","Smith Bros(Caer Conan)Wholesale Limited","566693","366.00","Materials","130223069","25/07/2018","Street Lighting","Street Lighting Maintenance","R4007"
"Wolverhampton City Council","http://opendatacommunities.org/id/metropolitan-district-council/wolverhampton","707418","Solihull M B C","blue form inv. 106497","25,000.00","TPP - Payments to Local Authorities","130221044","04/07/2018","Safeguarding","Head of Service Quality and Safeguarding","R5100"
"Wolverhampton City Council","http://opendatacommunities.org/id/metropolitan-district-council/wolverhampton","707418","Solihull M B C","106497- Blue Bill","10,000.00","TPP - Payments to Local Authorities","130221243","04/07/2018","Safeguarding","Head of Service Quality and Safeguarding","R5100"
"Wolverhampton City Council","http://opendatacommunities.org/id/metropolitan-district-council/wolverhampton","707435","South Staffs College","225483","97,854.81","TPP - Alternative Provision of Education","130222735","25/07/2018","Special Educational Needs","Post 16 SEN Provision","R5037"
"Wolverhampton City Council","http://opendatacommunities.org/id/metropolitan-district-council/wolverhampton","707471","Spectrum Plastics","48295","920.60","Stationery","130221389","25/07/2018","Local Economy","Global Budgets","R4308"
"Wolverhampton City Council","http://opendatacommunities.org/id/metropolitan-district-council/wolverhampton","707474","Speedy Asset Services Limited","7111638257","118.96","Equipment - Hire","130220129","11/07/2018","Highways Maintenance","Planned Highways Maintenance","R4001"
"Wolverhampton City Council","http://opendatacommunities.org/id/metropolitan-district-council/wolverhampton","707474","Speedy Asset Services Limited","7111638706","92.00","Equipment - Hire","130220135","11/07/2018","Highways Maintenance","Planned Highways Maintenance","R4001"
"Wolverhampton City Council","http://opendatacommunities.org/id/metropolitan-district-council/wolverhampton","707474","Speedy Asset Services Limited","7111638388","56.99","Equipment - Hire","130220132","11/07/2018","Highways Maintenance","Planned Highways Maintenance","R4001"
"Wolverhampton City Council","http://opendatacommunities.org/id/metropolitan-district-council/wolverhampton","707474","Speedy Asset Services Limited","7111637584","307.50","Equipment - Hire","130220124","11/07/2018","Highways Maintenance","Planned Highways Maintenance","R4001"
"Wolverhampton City Council","http://opendatacommunities.org/id/metropolitan-district-council/wolverhampton","707474","Speedy Asset Services Limited","7111637295","56.95","Equipment - Hire","130220121","11/07/2018","Highways Maintenance","Planned Highways Maintenance","R4001"
"Wolverhampton City Council","http://opendatacommunities.org/id/metropolitan-district-council/wolverhampton","707474","Speedy Asset Services Limited","7111638167","118.96","Equipment - Hire","130220128","11/07/2018","Highways Maintenance","Planned Highways Maintenance","R4001"
"Wolverhampton City Council","http://opendatacommunities.org/id/metropolitan-district-council/wolverhampton","707474","Speedy Asset Services Limited","7111637169","56.99","Equipment - Hire","130220119","11/07/2018","Highways Maintenance","Planned Highways Maintenance","R4001"
"Wolverhampton City Council","http://opendatacommunities.org/id/metropolitan-district-council/wolverhampton","707474","Speedy Asset Services Limited","7111638097","126.50","Equipment - Hire","130220127","11/07/2018","Highways Maintenance","Planned Highways Maintenance","R4001"
"Wolverhampton City Council","http://opendatacommunities.org/id/metropolitan-district-council/wolverhampton","707474","Speedy Asset Services Limited","7111638757","56.99","Equipment - Hire","130220136","11/07/2018","Highways Maintenance","Planned Highways Maintenance","R4001"
"Wolverhampton City Council","http://opendatacommunities.org/id/metropolitan-district-council/wolverhampton","707474","Speedy Asset Services Limited","7111638909","108.19","Equipment - Hire","130220138","11/07/2018","Highways Maintenance","Planned Highways Maintenance","R4001"
"Wolverhampton City Council","http://opendatacommunities.org/id/metropolitan-district-council/wolverhampton","707474","Speedy Asset Services Limited","7111638532","92.00","Equipment - Hire","130220134","11/07/2018","Highways Maintenance","Planned Highways Maintenance","R4001"
"Wolverhampton City Council","http://opendatacommunities.org/id/metropolitan-district-council/wolverhampton","707474","Speedy Asset Services Limited","7111638386","118.96","Equipment - Hire","130220131","11/07/2018","Highways Maintenance","Planned Highways Maintenance","R4001"
"Wolverhampton City Council","http://opendatacommunities.org/id/metropolitan-district-council/wolverhampton","707474","Speedy Asset Services Limited","7111637877","55.20","Equipment - Hire","130220125","11/07/2018","Highways Maintenance","Planned Highways Maintenance","R4001"
"Wolverhampton City Council","http://opendatacommunities.org/id/metropolitan-district-council/wolverhampton","707474","Speedy Asset Services Limited","7111637885","55.20","Equipment - Hire","130220126","11/07/2018","Highways Maintenance","Planned Highways Maintenance","R4001"
"Wolverhampton City Council","http://opendatacommunities.org/id/metropolitan-district-council/wolverhampton","707474","Speedy Asset Services Limited","7111637506","56.95","Equipment - Hire","130220123","11/07/2018","Highways Maintenance","Planned Highways Maintenance","R4001"
"Wolverhampton City Council","http://opendatacommunities.org/id/metropolitan-district-council/wolverhampton","707474","Speedy Asset Services Limited","7111638491","269.10","Equipment - Hire","130220133","11/07/2018","Highways Maintenance","Planned Highways Maintenance","R4001"
"Wolverhampton City Council","http://opendatacommunities.org/id/metropolitan-district-council/wolverhampton","707474","Speedy Asset Services Limited","7111638964","112.15","Equipment - Hire","130220139","11/07/2018","Highways Maintenance","Planned Highways Maintenance","R4001"
"Wolverhampton City Council","http://opendatacommunities.org/id/metropolitan-district-council/wolverhampton","707474","Speedy Asset Services Limited","7111638828","55.20","Equipment - Hire","130220137","11/07/2018","Highways Maintenance","Planned Highways Maintenance","R4001"
"Wolverhampton City Council","http://opendatacommunities.org/id/metropolitan-district-council/wolverhampton","707474","Speedy Asset Services Limited","7111637119","56.99","Equipment - Hire","130220118","11/07/2018","Highways Maintenance","Planned Highways Maintenance","R4001"
"Wolverhampton City Council","http://opendatacommunities.org/id/metropolitan-district-council/wolverhampton","707474","Speedy Asset Services Limited","7111637234","29.81","Equipment - Hire","130220120","11/07/2018","Highways Maintenance","Planned Highways Maintenance","R4001"
"Wolverhampton City Council","http://opendatacommunities.org/id/metropolitan-district-council/wolverhampton","707474","Speedy Asset Services Limited","7111638317","77.28","Equipment - Hire","130220130","11/07/2018","Highways Maintenance","Planned Highways Maintenance","R4001"
"Wolverhampton City Council","http://opendatacommunities.org/id/metropolitan-district-council/wolverhampton","707474","Speedy Asset Services Limited","7111637446","119.60","Equipment - Hire","130220122","11/07/2018","Highways Maintenance","Planned Highways Maintenance","R4001"
"Wolverhampton City Council","http://opendatacommunities.org/id/metropolitan-district-council/wolverhampton","707499","Spurgeons","3517","8,083.33","TPP - Social Care Support Services","130218778","04/07/2018","Child Protection","Head of Service - CINCP","R5501"
"Wolverhampton City Council","http://opendatacommunities.org/id/metropolitan-district-council/wolverhampton","707499","Spurgeons","3528","8,083.33","TPP - Social Care Support Services","130221390","27/07/2018","Child Protection","Head of Service - CINCP","R5501"
"Wolverhampton City Council","http://opendatacommunities.org/id/metropolitan-district-council/wolverhampton","707499","Spurgeons","3516","8,083.33","TPP - Social Care Support Services","130218777","04/07/2018","Child Protection","Head of Service - CINCP","R5501"
"Wolverhampton City Council","http://opendatacommunities.org/id/metropolitan-district-council/wolverhampton","707499","Spurgeons","3515","8,083.33","TPP - Social Care Support Services","130218776","04/07/2018","Child Protection","Head of Service - CINCP","R5501"
"Wolverhampton City Council","http://opendatacommunities.org/id/metropolitan-district-council/wolverhampton","707517","St George�S Veterinary Group","WCC2018_05","640.62","Services - Professional Fees","130219426","25/07/2018","Public Protection","Pest Control & Animal Welfare","R4400"
"Wolverhampton City Council","http://opendatacommunities.org/id/metropolitan-district-council/wolverhampton","707519","St Ives Chambers","INVMS31","1,125.00","Services - Professional Fees","130220140","13/07/2018","Licensing","Licensing - Private Hire Vehicles","R4400"
"Wolverhampton City Council","http://opendatacommunities.org/id/metropolitan-district-council/wolverhampton","707519","St Ives Chambers","INVLWL5","1,100.00","Services - Professional Fees","130223896","27/07/2018","Housing","Private Sector Housing","R4400"
"Wolverhampton City Council","http://opendatacommunities.org/id/metropolitan-district-council/wolverhampton","707521","St Johns Ambulance","SP17010860","161.00","Services - Professional Fees","130219551","04/07/2018","Public Service Reform","Mayoral Expenses","R4400"
"Wolverhampton City Council","http://opendatacommunities.org/id/metropolitan-district-council/wolverhampton","707533","St Matthews Church","180617","50.00","Room Hire","130220422","06/07/2018","Community Safety","SWP - Infrastructure","R2201"
"Wolverhampton City Council","http://opendatacommunities.org/id/metropolitan-district-council/wolverhampton","707564","Staffordshire County Council","1000013601","6,570.00","TPP - Payments to Local Authorities","130222736","18/07/2018","Special Educational Needs","SEN Education OOC","R5100"
"Wolverhampton City Council","http://opendatacommunities.org/id/metropolitan-district-council/wolverhampton","707564","Staffordshire County Council","8005091969","85.50","Services - Professional Fees","130223336","27/07/2018","Highways Maintenance","Winter Maintenance","R4400"
"Wolverhampton City Council","http://opendatacommunities.org/id/metropolitan-district-council/wolverhampton","707564","Staffordshire County Council","1000009602","3,203.20","TPP - Payments to Local Authorities","130223445","25/07/2018","Special Educational Needs","SEN Education OOC","R5100"
"Wolverhampton City Council","http://opendatacommunities.org/id/metropolitan-district-council/wolverhampton","707564","Staffordshire County Council","8005092220","85.50","Services - Professional Fees","130223074","25/07/2018","Highways Maintenance","Winter Maintenance","R4400"
"Wolverhampton City Council","http://opendatacommunities.org/id/metropolitan-district-council/wolverhampton","707564","Staffordshire County Council","1000007458","80.50","Services - Professional Fees","130223071","23/07/2018","Highways Maintenance","Winter Maintenance","R4400"
"Wolverhampton City Council","http://opendatacommunities.org/id/metropolitan-district-council/wolverhampton","707564","Staffordshire County Council","1000005861","4,777.50","Client Transport - SEN","130220971","04/07/2018","Special Educational Needs","Special - Transport","R3043"
"Wolverhampton City Council","http://opendatacommunities.org/id/metropolitan-district-council/wolverhampton","707564","Staffordshire County Council","1000013914","750.00","TPP - Payments to Local Authorities","130220829","25/07/2018","Transportation","I54 Travel Plan Steering Group","R5100"
"Wolverhampton City Council","http://opendatacommunities.org/id/metropolitan-district-council/wolverhampton","707564","Staffordshire County Council","1000005860","2,007.88","Client Transport - SEN","130223444","25/07/2018","Special Educational Needs","Special - Transport","R3043"
"Wolverhampton City Council","http://opendatacommunities.org/id/metropolitan-district-council/wolverhampton","707564","Staffordshire County Council","8004149094","3,223.76","TPP - Payments to Local Authorities","130223447","25/07/2018","Special Educational Needs","SEN Education OOC","R5100"
"Wolverhampton City Council","http://opendatacommunities.org/id/metropolitan-district-council/wolverhampton","707564","Staffordshire County Council","8005091828","85.50","Services - Professional Fees","130223073","25/07/2018","Highways Maintenance","Winter Maintenance","R4400"
"Wolverhampton City Council","http://opendatacommunities.org/id/metropolitan-district-council/wolverhampton","707572","Stage Audio Services Limited","4015","1,000.00","Services - Professional Fees","130220286","04/07/2018","Visitor Economy","The Little Civic","R4400"
"Wolverhampton City Council","http://opendatacommunities.org/id/metropolitan-district-council/wolverhampton","707572","Stage Audio Services Limited","4027","340.00","Services - Professional Fees","130221861","11/07/2018","Visitor Economy","The Little Civic","R4400"
"Wolverhampton City Council","http://opendatacommunities.org/id/metropolitan-district-council/wolverhampton","707580","Stannah Lifts Limited","18/0007/SAG","745.00","Grants paid out to other organisations","190489670","25/07/2018","-","Disabled Facilities Grants","C5011"
"Wolverhampton City Council","http://opendatacommunities.org/id/metropolitan-district-council/wolverhampton","707580","Stannah Lifts Limited","17/0791/SAG","805.00","Grants paid out to other organisations","190475784","04/07/2018","-","Disabled Facilities Grants","C5011"
"Wolverhampton City Council","http://opendatacommunities.org/id/metropolitan-district-council/wolverhampton","707580","Stannah Lifts Limited","18/0094/SAG","3,291.00","Grants paid out to other organisations","190483224","11/07/2018","-","Disabled Facilities Grants","C5011"
"Wolverhampton City Council","http://opendatacommunities.org/id/metropolitan-district-council/wolverhampton","707580","Stannah Lifts Limited","17/0612/SAG","4,086.00","Grants paid out to other organisations","190489669","25/07/2018","-","Disabled Facilities Grants","C5011"
"Wolverhampton City Council","http://opendatacommunities.org/id/metropolitan-district-council/wolverhampton","707580","Stannah Lifts Limited","17/0506/SAG","646.14","Grants paid out to other organisations","190487369","23/07/2018","-","Disabled Facilities Grants","C5011"
"Wolverhampton City Council","http://opendatacommunities.org/id/metropolitan-district-council/wolverhampton","707580","Stannah Lifts Limited","17/0626/SAG","2,572.80","Grants paid out to other organisations","190475783","04/07/2018","-","Disabled Facilities Grants","C5011"
"Wolverhampton City Council","http://opendatacommunities.org/id/metropolitan-district-council/wolverhampton","707580","Stannah Lifts Limited","18/0238/SLM","183.42","Grants paid out to other organisations","190483223","11/07/2018","-","Disabled Facilities Grants","C5011"
"Wolverhampton City Council","http://opendatacommunities.org/id/metropolitan-district-council/wolverhampton","707609","Sterling Hydrotech Limited","31460","187.50","R&M - Departmental planned (external)","130222196","18/07/2018","Leisure Services","Central Baths","R2001"
"Wolverhampton City Council","http://opendatacommunities.org/id/metropolitan-district-council/wolverhampton","707625","Stone Hardy Limited","1256119","39.05","Equipment - Purchase","190490194","27/07/2018","Fleet Services","Fleet Management","R4000"
"Wolverhampton City Council","http://opendatacommunities.org/id/metropolitan-district-council/wolverhampton","707625","Stone Hardy Limited","1256119","251.84","Equipment - Purchase","190490194","27/07/2018","Fleet Services","Fleet Management","R4000"
"Wolverhampton City Council","http://opendatacommunities.org/id/metropolitan-district-council/wolverhampton","707625","Stone Hardy Limited","1256119","124.17","Equipment - Purchase","190490194","27/07/2018","Fleet Services","Fleet Management","R4000"
"Wolverhampton City Council","http://opendatacommunities.org/id/metropolitan-district-council/wolverhampton","707644","Streetmaster (South Wales)Limited","5335","607.00","Materials for resale","130219266","11/07/2018","Bereavement Services","Cemeteries","R4008"
"Wolverhampton City Council","http://opendatacommunities.org/id/metropolitan-district-council/wolverhampton","707657","Stulz UK Limited","18-8023","2,266.75","R&M - Departmental planned (internal)","130221862","13/07/2018","Maintenance Programme","Civic Centre Repairs & Maintenance","R2000"
"Wolverhampton City Council","http://opendatacommunities.org/id/metropolitan-district-council/wolverhampton","707682","Sunflowers Day Nursery Limited","TFT Summer 2018 Inst 2","4,668.84","TPP - Private Nursery Education Funding","190489836","25/07/2018","Early Years","Early Years Entitlement Funding for Disadvantaged 2 Year Olds","R5035"
"Wolverhampton City Council","http://opendatacommunities.org/id/metropolitan-district-council/wolverhampton","707682","Sunflowers Day Nursery Limited","EYPP Summer 2018","1,144.80","TPP - Private Nursery Education Funding","190489844","25/07/2018","Early Years","Early Years Pupil Premium","R5035"
"Wolverhampton City Council","http://opendatacommunities.org/id/metropolitan-district-council/wolverhampton","707682","Sunflowers Day Nursery Limited","NEF Summer 2018 INST 2","17,913.83","TPP - Private Nursery Education Funding","190489824","25/07/2018","Early Years","Early Years Universal Entitlement for 3 and 4 Year Olds","R5035"
"Wolverhampton City Council","http://opendatacommunities.org/id/metropolitan-district-council/wolverhampton","707682","Sunflowers Day Nursery Limited","69-17","92.00","TPP - Child Care provided for client","130219929","13/07/2018","Adult Education","Discretionary Fund","R5034"
"Wolverhampton City Council","http://opendatacommunities.org/id/metropolitan-district-council/wolverhampton","707685","Sunnyside Kennels","SS1089","1,581.67","Services - Professional Fees","130220141","11/07/2018","Public Protection","Pest Control & Animal Welfare","R4400"
"Wolverhampton City Council","http://opendatacommunities.org/id/metropolitan-district-council/wolverhampton","707686","Sunrise Medical Limited","18UI089108","2,160.00","Equipment - Purchase","130218779","04/07/2018","Independent Living Service","Independent Living Service","R4000"
"Wolverhampton City Council","http://opendatacommunities.org/id/metropolitan-district-council/wolverhampton","707686","Sunrise Medical Limited","18UI089108","126.00","Equipment - R & M","130218779","04/07/2018","Independent Living Service","Independent Living Service","R4003"
"Wolverhampton City Council","http://opendatacommunities.org/id/metropolitan-district-council/wolverhampton","707686","Sunrise Medical Limited","18UI089540","400.00","Equipment - Purchase","130218947","04/07/2018","Independent Living Service","Independent Living Service","R4000"
"Wolverhampton City Council","http://opendatacommunities.org/id/metropolitan-district-council/wolverhampton","707720","Swift Business Solutions Limited","Grant No. 067/17r","989.70","Grant Payments","190475754","04/07/2018","Enterprise","Black Country Gold","R4700"
"Wolverhampton City Council","http://opendatacommunities.org/id/metropolitan-district-council/wolverhampton","707720","Swift Business Solutions Limited","Grant No. 067/17c","697.00","Grants paid out to other organisations","190475753","04/07/2018","-","GF - Black Country Gold ERDF Project","C5011"
"Wolverhampton City Council","http://opendatacommunities.org/id/metropolitan-district-council/wolverhampton","707722","Swift Maintnce Services (1973) Limited","26460","3,337.38","Equipment - Catering","130220678","04/07/2018","Catering","Education Catering - General Overheads","R4010"
"Wolverhampton City Council","http://opendatacommunities.org/id/metropolitan-district-council/wolverhampton","707722","Swift Maintnce Services (1973) Limited","26605","75.50","Equipment - Catering","130222034","13/07/2018","Visitor Economy","Art Gallery Tea Room","R4010"
"Wolverhampton City Council","http://opendatacommunities.org/id/metropolitan-district-council/wolverhampton","707722","Swift Maintnce Services (1973) Limited","26265","317.00","Equipment - R & M","130218948","06/07/2018","Older People Provider Services","Bradley Lodge Resource Centre","R4003"
"Wolverhampton City Council","http://opendatacommunities.org/id/metropolitan-district-council/wolverhampton","707722","Swift Maintnce Services (1973) Limited","26617","235.00","Equipment - R & M","130222470","18/07/2018","Catering","Education Catering - General Overheads","R4003"
"Wolverhampton City Council","http://opendatacommunities.org/id/metropolitan-district-council/wolverhampton","707722","Swift Maintnce Services (1973) Limited","26627","189.77","Equipment - R & M","130222543","23/07/2018","Older People Provider Services","Bradley Lodge Resource Centre","R4003"
"Wolverhampton City Council","http://opendatacommunities.org/id/metropolitan-district-council/wolverhampton","707722","Swift Maintnce Services (1973) Limited","26714","89.75","Equipment - R & M","130223450","27/07/2018","Local Economy","Blakenhall Community & Healthy Living Centre","R4003"
"Wolverhampton City Council","http://opendatacommunities.org/id/metropolitan-district-council/wolverhampton","707722","Swift Maintnce Services (1973) Limited","26424","47.00","Equipment - Catering","130220571","04/07/2018","Visitor Economy","Bantock - Tea Rooms","R4010"
"Wolverhampton City Council","http://opendatacommunities.org/id/metropolitan-district-council/wolverhampton","707722","Swift Maintnce Services (1973) Limited","9731","89.76","Equipment - Catering","130023516","25/07/2018","Older People Provider Services","Nelson Mandela House","R4010"
"Wolverhampton City Council","http://opendatacommunities.org/id/metropolitan-district-council/wolverhampton","707722","Swift Maintnce Services (1973) Limited","26609","1,414.04","Equipment - Catering","130222468","13/07/2018","Visitor Economy","Bantock - Tea Rooms","R4010"
"Wolverhampton City Council","http://opendatacommunities.org/id/metropolitan-district-council/wolverhampton","707722","Swift Maintnce Services (1973) Limited","19005","84.48","Equipment - Catering","130132671","27/07/2018","Older People Provider Services","Bradley Lodge Resource Centre","R4010"
"Wolverhampton City Council","http://opendatacommunities.org/id/metropolitan-district-council/wolverhampton","707722","Swift Maintnce Services (1973) Limited","26538","647.00","Equipment - Catering","130221391","18/07/2018","Visitor Economy","Bantock - Tea Rooms","R4010"
"Wolverhampton City Council","http://opendatacommunities.org/id/metropolitan-district-council/wolverhampton","707722","Swift Maintnce Services (1973) Limited","26546","257.10","Equipment - Purchase","130221494","06/07/2018","Catering","Education Catering - General Overheads","R4000"
"Wolverhampton City Council","http://opendatacommunities.org/id/metropolitan-district-council/wolverhampton","707722","Swift Maintnce Services (1973) Limited","26555","3,395.84","Equipment - R & M","130221653","06/07/2018","Cleaning","Cleaning of Buildings - General","R4003"
"Wolverhampton City Council","http://opendatacommunities.org/id/metropolitan-district-council/wolverhampton","707722","Swift Maintnce Services (1973) Limited","26618","408.50","Equipment - R & M","130222471","18/07/2018","Catering","Education Catering - General Overheads","R4003"
"Wolverhampton City Council","http://opendatacommunities.org/id/metropolitan-district-council/wolverhampton","707722","Swift Maintnce Services (1973) Limited","26198","50.85","Equipment - R & M","130218286","13/07/2018","Older People Provider Services","Bradley Lodge Resource Centre","R4003"
"Wolverhampton City Council","http://opendatacommunities.org/id/metropolitan-district-council/wolverhampton","707722","Swift Maintnce Services (1973) Limited","26712","157.66","Equipment - R & M","130223449","27/07/2018","Local Economy","Blakenhall Community & Healthy Living Centre","R4003"
"Wolverhampton City Council","http://opendatacommunities.org/id/metropolitan-district-council/wolverhampton","707722","Swift Maintnce Services (1973) Limited","26616","5,900.04","Equipment - R & M","130222469","18/07/2018","Catering","Education Catering - General Overheads","R4003"
"Wolverhampton City Council","http://opendatacommunities.org/id/metropolitan-district-council/wolverhampton","707722","Swift Maintnce Services (1973) Limited","26619","333.00","Equipment - R & M","130222472","18/07/2018","Catering","Education Catering - General Overheads","R4003"
"Wolverhampton City Council","http://opendatacommunities.org/id/metropolitan-district-council/wolverhampton","707751","T H White Limited","E82560","26.82","Equipment - Purchase","190486302","23/07/2018","Fleet Services","Fleet Management","R4000"
"Wolverhampton City Council","http://opendatacommunities.org/id/metropolitan-district-council/wolverhampton","707751","T H White Limited","E83914","16.92","Equipment - Purchase","190483204","11/07/2018","Fleet Services","Fleet Management","R4000"
"Wolverhampton City Council","http://opendatacommunities.org/id/metropolitan-district-council/wolverhampton","707751","T H White Limited","E84040","42.02","Equipment - Purchase","190486304","23/07/2018","Fleet Services","Fleet Management","R4000"
"Wolverhampton City Council","http://opendatacommunities.org/id/metropolitan-district-council/wolverhampton","707751","T H White Limited","E84011","8.70","Equipment - Purchase","190481479","06/07/2018","Fleet Services","Fleet Management","R4000"
"Wolverhampton City Council","http://opendatacommunities.org/id/metropolitan-district-council/wolverhampton","707751","T H White Limited","E84011","28.75","Equipment - Purchase","190481479","06/07/2018","Fleet Services","Fleet Management","R4000"
"Wolverhampton City Council","http://opendatacommunities.org/id/metropolitan-district-council/wolverhampton","707751","T H White Limited","E84011","51.33","Equipment - Purchase","190481479","06/07/2018","Fleet Services","Fleet Management","R4000"
"Wolverhampton City Council","http://opendatacommunities.org/id/metropolitan-district-council/wolverhampton","707751","T H White Limited","E83941","103.32","Equipment - Purchase","190490249","27/07/2018","Fleet Services","Fleet Management","R4000"
"Wolverhampton City Council","http://opendatacommunities.org/id/metropolitan-district-council/wolverhampton","707751","T H White Limited","E83941","364.57","Equipment - Purchase","190490249","27/07/2018","Fleet Services","Fleet Management","R4000"
"Wolverhampton City Council","http://opendatacommunities.org/id/metropolitan-district-council/wolverhampton","707751","T H White Limited","E83941","364.57","Equipment - Purchase","190490249","27/07/2018","Fleet Services","Fleet Management","R4000"
"Wolverhampton City Council","http://opendatacommunities.org/id/metropolitan-district-council/wolverhampton","707751","T H White Limited","E83740","102.60","Equipment - Purchase","190480856","04/07/2018","Fleet Services","Fleet Management","R4000"
"Wolverhampton City Council","http://opendatacommunities.org/id/metropolitan-district-council/wolverhampton","707751","T H White Limited","E84118","219.37","Equipment - Purchase","190484341","13/07/2018","Fleet Services","Fleet Management","R4000"
"Wolverhampton City Council","http://opendatacommunities.org/id/metropolitan-district-council/wolverhampton","707751","T H White Limited","E84118","30.42","Equipment - Purchase","190484341","13/07/2018","Fleet Services","Fleet Management","R4000"
"Wolverhampton City Council","http://opendatacommunities.org/id/metropolitan-district-council/wolverhampton","707751","T H White Limited","E83781","0.74","Equipment - Purchase","190480857","04/07/2018","Fleet Services","Fleet Management","R4000"
"Wolverhampton City Council","http://opendatacommunities.org/id/metropolitan-district-council/wolverhampton","707751","T H White Limited","E83781","42.40","Equipment - Purchase","190480857","04/07/2018","Fleet Services","Fleet Management","R4000"
"Wolverhampton City Council","http://opendatacommunities.org/id/metropolitan-district-council/wolverhampton","707751","T H White Limited","E83781","12.96","Equipment - Purchase","190480857","04/07/2018","Fleet Services","Fleet Management","R4000"
"Wolverhampton City Council","http://opendatacommunities.org/id/metropolitan-district-council/wolverhampton","707751","T H White Limited","E83781","23.30","Equipment - Purchase","190480857","04/07/2018","Fleet Services","Fleet Management","R4000"
"Wolverhampton City Council","http://opendatacommunities.org/id/metropolitan-district-council/wolverhampton","707751","T H White Limited","E83781","3.68","Equipment - Purchase","190480857","04/07/2018","Fleet Services","Fleet Management","R4000"
"Wolverhampton City Council","http://opendatacommunities.org/id/metropolitan-district-council/wolverhampton","707751","T H White Limited","E83781","46.42","Equipment - Purchase","190480857","04/07/2018","Fleet Services","Fleet Management","R4000"
"Wolverhampton City Council","http://opendatacommunities.org/id/metropolitan-district-council/wolverhampton","707751","T H White Limited","E83781","11.06","Equipment - Purchase","190480857","04/07/2018","Fleet Services","Fleet Management","R4000"
"Wolverhampton City Council","http://opendatacommunities.org/id/metropolitan-district-council/wolverhampton","707751","T H White Limited","E83992","111.79","Equipment - Purchase","190486303","23/07/2018","Fleet Services","Fleet Management","R4000"
"Wolverhampton City Council","http://opendatacommunities.org/id/metropolitan-district-council/wolverhampton","707751","T H White Limited","E84100","9.36","Equipment - Purchase","190484340","13/07/2018","Fleet Services","Fleet Management","R4000"
"Wolverhampton City Council","http://opendatacommunities.org/id/metropolitan-district-council/wolverhampton","707751","T H White Limited","E84100","32.96","Equipment - Purchase","190484340","13/07/2018","Fleet Services","Fleet Management","R4000"
"Wolverhampton City Council","http://opendatacommunities.org/id/metropolitan-district-council/wolverhampton","707751","T H White Limited","E84100","221.38","Equipment - Purchase","190484340","13/07/2018","Fleet Services","Fleet Management","R4000"
"Wolverhampton City Council","http://opendatacommunities.org/id/metropolitan-district-council/wolverhampton","707751","T H White Limited","E84100","18.63","Equipment - Purchase","190484340","13/07/2018","Fleet Services","Fleet Management","R4000"
"Wolverhampton City Council","http://opendatacommunities.org/id/metropolitan-district-council/wolverhampton","707751","T H White Limited","E83672","20.47","Equipment - Purchase","190480855","04/07/2018","Fleet Services","Fleet Management","R4000"
"Wolverhampton City Council","http://opendatacommunities.org/id/metropolitan-district-council/wolverhampton","707798","The Children�s Society","ARSERV/00000573","11,431.63","TPP - Social Care Support Services","130221863","11/07/2018","Looked After Children","Head of Service - LAC","R5501"
"Wolverhampton City Council","http://opendatacommunities.org/id/metropolitan-district-council/wolverhampton","707798","The Children�s Society","ARSERV/00000579","85,389.00","TPP - Social Care Support Services","130222197","25/07/2018","Early Intervention","Emotional Mental Health Wellbeing Service","R5501"
"Wolverhampton City Council","http://opendatacommunities.org/id/metropolitan-district-council/wolverhampton","707817","Team(Energy Auditing Agency Limited)","INV-2902","3,772.50","R&M - Departmental planned (external)","130218613","04/07/2018","Corporate Asset Management","Energy Management","R2001"
"Wolverhampton City Council","http://opendatacommunities.org/id/metropolitan-district-council/wolverhampton","707824","Technogym UK Limited","1875000488","9,685.20","Equipment - R & M","130222198","11/07/2018","Local Economy","Blakenhall Community & Healthy Living Centre","R4003"
"Wolverhampton City Council","http://opendatacommunities.org/id/metropolitan-district-council/wolverhampton","707840","Telewest Communications/Virgin Media","816601-145","7.72","Comms - Telephone Rental","190484195","13/07/2018","ICTS","Strategic ICTS (ICT Service Budget)","R4504"
"Wolverhampton City Council","http://opendatacommunities.org/id/metropolitan-district-council/wolverhampton","707840","Telewest Communications/Virgin Media","073979301/001/0317","65.19","Comms - Telephone Rental","190484192","13/07/2018","ICTS","Strategic ICTS (ICT Service Budget)","R4504"
"Wolverhampton City Council","http://opendatacommunities.org/id/metropolitan-district-council/wolverhampton","707840","Telewest Communications/Virgin Media","815191-149","91.56","Comms - Telephone Rental","190484207","13/07/2018","ICTS","Strategic ICTS (ICT Service Budget)","R4504"
"Wolverhampton City Council","http://opendatacommunities.org/id/metropolitan-district-council/wolverhampton","707840","Telewest Communications/Virgin Media","815191-155","86.68","Comms - Telephone Rental","190484203","13/07/2018","ICTS","Strategic ICTS (ICT Service Budget)","R4504"
"Wolverhampton City Council","http://opendatacommunities.org/id/metropolitan-district-council/wolverhampton","707840","Telewest Communications/Virgin Media","037983501/003/0418","5.75","Comms - Telephone Rental","190484228","13/07/2018","ICTS","Strategic ICTS (ICT Service Budget)","R4504"
"Wolverhampton City Council","http://opendatacommunities.org/id/metropolitan-district-council/wolverhampton","707840","Telewest Communications/Virgin Media","815191-154","192.82","Comms - Telephone Rental","190484204","13/07/2018","ICTS","Strategic ICTS (ICT Service Budget)","R4504"
"Wolverhampton City Council","http://opendatacommunities.org/id/metropolitan-district-council/wolverhampton","707840","Telewest Communications/Virgin Media","037983501/003/0417","6.00","Comms - Telephone Rental","190484240","13/07/2018","ICTS","Strategic ICTS (ICT Service Budget)","R4504"
"Wolverhampton City Council","http://opendatacommunities.org/id/metropolitan-district-council/wolverhampton","707840","Telewest Communications/Virgin Media","037983501/003/1117","5.75","Comms - Telephone Rental","190484233","13/07/2018","ICTS","Strategic ICTS (ICT Service Budget)","R4504"
"Wolverhampton City Council","http://opendatacommunities.org/id/metropolitan-district-council/wolverhampton","707840","Telewest Communications/Virgin Media","037712601/001/0517","6.14","Comms - Telephone Rental","190484221","13/07/2018","ICTS","Strategic ICTS (ICT Service Budget)","R4504"
"Wolverhampton City Council","http://opendatacommunities.org/id/metropolitan-district-council/wolverhampton","707840","Telewest Communications/Virgin Media","035910901/003/0418","5.75","Comms - Telephone Rental","190484211","13/07/2018","ICTS","Strategic ICTS (ICT Service Budget)","R4504"
"Wolverhampton City Council","http://opendatacommunities.org/id/metropolitan-district-council/wolverhampton","707840","Telewest Communications/Virgin Media","036800401/013/0418","2.99","Comms - Telephone Rental","190484213","13/07/2018","ICTS","Strategic ICTS (ICT Service Budget)","R4504"
"Wolverhampton City Council","http://opendatacommunities.org/id/metropolitan-district-council/wolverhampton","707840","Telewest Communications/Virgin Media","036800401/010/0418","20.61","Comms - Telephone Rental","190484217","13/07/2018","ICTS","Strategic ICTS (ICT Service Budget)","R4504"
"Wolverhampton City Council","http://opendatacommunities.org/id/metropolitan-district-council/wolverhampton","707840","Telewest Communications/Virgin Media","073979301/001/1116","88.83","Comms - Telephone Rental","190484193","13/07/2018","ICTS","Strategic ICTS (ICT Service Budget)","R4504"
"Wolverhampton City Council","http://opendatacommunities.org/id/metropolitan-district-council/wolverhampton","707840","Telewest Communications/Virgin Media","815191-153","70.78","Comms - Telephone Rental","190484205","13/07/2018","ICTS","Strategic ICTS (ICT Service Budget)","R4504"
"Wolverhampton City Council","http://opendatacommunities.org/id/metropolitan-district-council/wolverhampton","707840","Telewest Communications/Virgin Media","816601-138","30.41","Comms - Telephone Rental","190484202","13/07/2018","ICTS","Strategic ICTS (ICT Service Budget)","R4504"
"Wolverhampton City Council","http://opendatacommunities.org/id/metropolitan-district-council/wolverhampton","707840","Telewest Communications/Virgin Media","037983501/003/0118","5.75","Comms - Telephone Rental","190484231","13/07/2018","ICTS","Strategic ICTS (ICT Service Budget)","R4504"
"Wolverhampton City Council","http://opendatacommunities.org/id/metropolitan-district-council/wolverhampton","707840","Telewest Communications/Virgin Media","037983501/003/0518","5.75","Comms - Telephone Rental","190484227","13/07/2018","ICTS","Strategic ICTS (ICT Service Budget)","R4504"
"Wolverhampton City Council","http://opendatacommunities.org/id/metropolitan-district-council/wolverhampton","707840","Telewest Communications/Virgin Media","037712601/001/0917","7.53","Comms - Telephone Rental","190484225","13/07/2018","ICTS","Strategic ICTS (ICT Service Budget)","R4504"
"Wolverhampton City Council","http://opendatacommunities.org/id/metropolitan-district-council/wolverhampton","707840","Telewest Communications/Virgin Media","037983501/003/1217","5.75","Comms - Telephone Rental","190484232","13/07/2018","ICTS","Strategic ICTS (ICT Service Budget)","R4504"
"Wolverhampton City Council","http://opendatacommunities.org/id/metropolitan-district-council/wolverhampton","707840","Telewest Communications/Virgin Media","037983501/003/0817","4.50","Comms - Telephone Rental","190484236","13/07/2018","ICTS","Strategic ICTS (ICT Service Budget)","R4504"
"Wolverhampton City Council","http://opendatacommunities.org/id/metropolitan-district-council/wolverhampton","707840","Telewest Communications/Virgin Media","035830701/001/0418","60.00","Comms - Telephone Rental","190484209","13/07/2018","ICTS","Strategic ICTS (ICT Service Budget)","R4504"
"Wolverhampton City Council","http://opendatacommunities.org/id/metropolitan-district-council/wolverhampton","707840","Telewest Communications/Virgin Media","036780801/001/0518","17.96","Comms - Telephone Rental","190484212","13/07/2018","ICTS","Strategic ICTS (ICT Service Budget)","R4504"
"Wolverhampton City Council","http://opendatacommunities.org/id/metropolitan-district-council/wolverhampton","707840","Telewest Communications/Virgin Media","037712601/001/0617","6.02","Comms - Telephone Rental","190484222","13/07/2018","ICTS","Strategic ICTS (ICT Service Budget)","R4504"
"Wolverhampton City Council","http://opendatacommunities.org/id/metropolitan-district-council/wolverhampton","707840","Telewest Communications/Virgin Media","815191-152","96.76","Comms - Telephone Rental","190484206","13/07/2018","ICTS","Strategic ICTS (ICT Service Budget)","R4504"
"Wolverhampton City Council","http://opendatacommunities.org/id/metropolitan-district-council/wolverhampton","707840","Telewest Communications/Virgin Media","036800401/013/0318","0.53","Comms - Telephone Rental","190484214","13/07/2018","ICTS","Strategic ICTS (ICT Service Budget)","R4504"
"Wolverhampton City Council","http://opendatacommunities.org/id/metropolitan-district-council/wolverhampton","707840","Telewest Communications/Virgin Media","816601-140","65.46","Comms - Telephone Rental","190484200","13/07/2018","ICTS","Strategic ICTS (ICT Service Budget)","R4504"
"Wolverhampton City Council","http://opendatacommunities.org/id/metropolitan-district-council/wolverhampton","707840","Telewest Communications/Virgin Media","816601-139","62.53","Comms - Telephone Rental","190484201","13/07/2018","ICTS","Strategic ICTS (ICT Service Budget)","R4504"
"Wolverhampton City Council","http://opendatacommunities.org/id/metropolitan-district-council/wolverhampton","707840","Telewest Communications/Virgin Media","816601-144","8.07","Comms - Telephone Rental","190484196","13/07/2018","ICTS","Strategic ICTS (ICT Service Budget)","R4504"
"Wolverhampton City Council","http://opendatacommunities.org/id/metropolitan-district-council/wolverhampton","707840","Telewest Communications/Virgin Media","073979301/001/1216","6.24","Comms - Telephone Rental","190484191","13/07/2018","ICTS","Strategic ICTS (ICT Service Budget)","R4504"
"Wolverhampton City Council","http://opendatacommunities.org/id/metropolitan-district-council/wolverhampton","707840","Telewest Communications/Virgin Media","037712601/001/1017","-8.24","Comms - Telephone Rental","190484226","13/07/2018","ICTS","Strategic ICTS (ICT Service Budget)","R4504"
"Wolverhampton City Council","http://opendatacommunities.org/id/metropolitan-district-council/wolverhampton","707840","Telewest Communications/Virgin Media","037983501/003/0318","5.75","Comms - Telephone Rental","190484229","13/07/2018","ICTS","Strategic ICTS (ICT Service Budget)","R4504"
"Wolverhampton City Council","http://opendatacommunities.org/id/metropolitan-district-council/wolverhampton","707840","Telewest Communications/Virgin Media","037983501/003/1017","5.75","Comms - Telephone Rental","190484234","13/07/2018","ICTS","Strategic ICTS (ICT Service Budget)","R4504"
"Wolverhampton City Council","http://opendatacommunities.org/id/metropolitan-district-council/wolverhampton","707840","Telewest Communications/Virgin Media","037983501/003/0717","6.00","Comms - Telephone Rental","190484237","13/07/2018","ICTS","Strategic ICTS (ICT Service Budget)","R4504"
"Wolverhampton City Council","http://opendatacommunities.org/id/metropolitan-district-council/wolverhampton","707840","Telewest Communications/Virgin Media","037983501/003/0517","6.00","Comms - Telephone Rental","190484239","13/07/2018","ICTS","Strategic ICTS (ICT Service Budget)","R4504"
"Wolverhampton City Council","http://opendatacommunities.org/id/metropolitan-district-council/wolverhampton","707840","Telewest Communications/Virgin Media","036800401/007/0418","82.04","Comms - Telephone Rental","190484219","13/07/2018","ICTS","Strategic ICTS (ICT Service Budget)","R4504"
